{"text_format":"1","workbook":"xlsx","n_sheets":11,"sheets":["Backend","Sheet1","Introduction","TT","Test sensors","Run trials","Sheet2","Compare trials","Data In","Data Out","Settings"],"not_rendered":{"charts":68,"images":22,"macros":1,"external_links":0,"defined_names":23,"comments":0,"pivot_tables":0},"unopened":[],"bounds":{"document_bytes":16777216,"sheet_cells":100000,"rows_first":2000,"rows_last":500,"rows_between":2000,"halvings":0,"cell_chars":16384,"cell_head_chars":4096},"cells_cut":0,"cells_raw":0,"read":"whole","date_system":"1900"}

{"sheet":"Backend","index":0,"n_rows":30,"n_cols":66,"rows_kept":30,"cut":false,"hidden":true,"merged":[]}
[null,null,null,null,null,null,null,null,null,null,null,null,null,null,null,null,null,null,null,null,null,null,null,null,null,null,null,null,null,null,null,null,null,null,null,null,null,null,null,null,null,null,0,1]
[{"$f":"RIGHT(CELL(\"filename\",A2),LEN(CELL(\"filename\",A2))-FIND(\"]\",CELL(\"filename\",A2)))","v":"Backend"},null,null,null,null,"Sensor","Live","Scaled Live","MaxLive","ActiveStart","ActiveDelta","M0T0","M0T1","M0T2","M0T3","M0TAvg","M1T0","M1T1","M1T2","M1T3","M1TAvg","M2T0","M2T1","M2T2","M2T3","M2TAvg","M3T0","M3T1","M3T2","M3T3","M3TAvg","SetT0","SelT1","SelT2","SelT3","SelAvg","Sel_State","Sel_State0","Sel_State1","Sel_State2","Sel_State3","ActiveState","Active0","Active1","Active2","Active3","M0State","M0_State0","M0_State1","M0_State2","M0_State3","M1State","M1_State0","M1_State1","M1_State2","M1_State3","M2State","M2_State0","M2_State1","M2_State2","M2_State3","M3State","M3_State0","M3_State1","M3_State2","M3_State3"]
[null,"Build #",0,{"$f":"_xlfn.SWITCH(BuildNumber,0,TT!$O$45,1,TT!$O$46,2,TT!$O$47,3,TT!$O$48)","v":"Baseline"},null,1,{"$f":"INDEX('Data In'!$C$5:$F$5,1,BackendTable[[#This Row],[Sensor]])","v":0},{"$f":"BackendTable[[#This Row],[Live]]*DataScaling","v":0},{"$f":"INDEX(SensorTable[],MaxRow,MATCH(\"S\"&BackendTable[[#This Row],[Sensor]],SensorTable[#Headers],0))*DataScaling","v":0},{"$f":"INDEX(BackendTable[],BackendTable[[#This Row],[Sensor]],MATCH(\"M\"&BuildNumber&\"T0\",BackendTable[#Headers],0))","v":0},{"$f":"IF(BackendTable[[#This Row],[MaxLive]]>BackendTable[[#This Row],[ActiveStart]],BackendTable[[#This Row],[MaxLive]]-BackendTable[[#This Row],[ActiveStart]],0.01)","v":0.01},0,null,null,null,{"$f":"IFERROR(SUM(BackendTable[[#This Row],[M0T1]:[M0T3]])/COUNTIF(BackendTable[[#This Row],[M0T1]:[M0T3]],\">\"&0),0)","v":0},null,null,null,null,{"$f":"IFERROR(SUM(BackendTable[[#This Row],[M1T1]:[M1T3]])/COUNTIF(BackendTable[[#This Row],[M1T1]:[M1T3]],\">\"&0),0)","v":0},null,null,null,null,{"$f":"IFERROR(SUM(BackendTable[[#This Row],[M2T1]:[M2T3]])/COUNTIF(BackendTable[[#This Row],[M2T1]:[M2T3]],\">\"&0),0)","v":0},null,null,null,null,{"$f":"IFERROR(SUM(BackendTable[[#This Row],[M3T1]:[M3T3]])/COUNTIF(BackendTable[[#This Row],[M3T1]:[M3T3]],\">\"&0),0)","v":0},{"$f":"INDEX(BackendTable[#This Row],1,MATCH(\"M\"&BuildNumber&RIGHT(AF$2,LEN(AF$2)-3),BackendTable[#Headers],0))","v":0},{"$f":"INDEX(BackendTable[#This Row],1,MATCH(\"M\"&BuildNumber&RIGHT(AG$2,LEN(AG$2)-3),BackendTable[#Headers],0))","v":0},{"$f":"INDEX(BackendTable[#This Row],1,MATCH(\"M\"&BuildNumber&RIGHT(AH$2,LEN(AH$2)-3),BackendTable[#Headers],0))","v":0},{"$f":"INDEX(BackendTable[#This Row],1,MATCH(\"M\"&BuildNumber&RIGHT(AI$2,LEN(AI$2)-3),BackendTable[#Headers],0))","v":0},{"$f":"IFERROR(SUM(BackendTable[[#This Row],[SelT1]:[SelT3]])/COUNTIF(BackendTable[[#This Row],[SelT1]:[SelT3]],\">\"&0),0)","v":0},{"$f":"_xlfn.SWITCH(TRUE(),BackendTable[[#This Row],[SelAvg]]<=$C$6,0,AND(BackendTable[[#This Row],[SelAvg]]>$C$6,BackendTable[[#This Row],[SelAvg]]<=$C$7),1,AND(BackendTable[[#This Row],[SelAvg]]>$C$7,BackendTable[[#This Row],[SelAvg]]<=$C$8),2,3)","v":0},{"$f":"IF(BackendTable[[#This Row],[Sel_State]]=VALUE(RIGHT(AL$2,1)),BackendTable[[#This Row],[SelAvg]],NA())","v":0},{"$f":"IF(BackendTable[[#This Row],[Sel_State]]=VALUE(RIGHT(AM$2,1)),BackendTable[[#This Row],[SelAvg]],NA())","v":{"$error":"#N/A"}},{"$f":"IF(BackendTable[[#This Row],[Sel_State]]=VALUE(RIGHT(AN$2,1)),BackendTable[[#This Row],[SelAvg]],NA())","v":{"$error":"#N/A"}},{"$f":"IF(BackendTable[[#This Row],[Sel_State]]=VALUE(RIGHT(AO$2,1)),BackendTable[[#This Row],[SelAvg]],NA())","v":{"$error":"#N/A"}},{"$f":"_xlfn.SWITCH(TRUE(),BackendTable[[#This Row],[ActiveDelta]]<=$C$6,0,AND(BackendTable[[#This Row],[ActiveDelta]]>$C$6,BackendTable[[#This Row],[ActiveDelta]]<=$C$7),1,AND(BackendTable[[#This Row],[ActiveDelta]]>$C$7,BackendTable[[#This Row],[ActiveDelta]]<=$C$8),2,3)","v":0},{"$f":"IF(BackendTable[[#This Row],[ActiveState]]=VALUE(RIGHT(AQ$2,1)),1,NA())","v":1},{"$f":"IF(BackendTable[[#This Row],[ActiveState]]=VALUE(RIGHT(AR$2,1)),1,NA())","v":{"$error":"#N/A"}},{"$f":"IF(BackendTable[[#This Row],[ActiveState]]=VALUE(RIGHT(AS$2,1)),1,NA())","v":{"$error":"#N/A"}},{"$f":"IF(BackendTable[[#This Row],[ActiveState]]=VALUE(RIGHT(AT$2,1)),1,NA())","v":{"$error":"#N/A"}},{"$f":"_xlfn.SWITCH(TRUE(),BackendTable[[#This Row],[M0TAvg]]<=$C$6,0,AND(BackendTable[[#This Row],[M0TAvg]]>$C$6,BackendTable[[#This Row],[M0TAvg]]<=$C$7),1,AND(BackendTable[[#This Row],[M0TAvg]]>$C$7,BackendTable[[#This Row],[M0TAvg]]<=$C$8),2,3)","v":0},{"$f":"IF(SUM(BackendTable[M0State])=0,0.01,IF(BackendTable[[#This Row],[M0State]]=VALUE(RIGHT(AV$2,1)),BackendTable[[#This Row],[M0TAvg]],NA()))","v":0.01},{"$f":"IF(BackendTable[[#This Row],[M0State]]=VALUE(RIGHT(AW$2,1)),BackendTable[[#This Row],[M0TAvg]],NA())","v":{"$error":"#N/A"}},{"$f":"IF(BackendTable[[#This Row],[M0State]]=VALUE(RIGHT(AX$2,1)),BackendTable[[#This Row],[M0TAvg]],NA())","v":{"$error":"#N/A"}},{"$f":"IF(BackendTable[[#This Row],[M0State]]=VALUE(RIGHT(AY$2,1)),BackendTable[[#This Row],[M0TAvg]],NA())","v":{"$error":"#N/A"}},{"$f":"_xlfn.SWITCH(TRUE(),BackendTable[[#This Row],[M1TAvg]]<=$C$6,0,AND(BackendTable[[#This Row],[M1TAvg]]>$C$6,BackendTable[[#This Row],[M1TAvg]]<=$C$7),1,AND(BackendTable[[#This Row],[M1TAvg]]>$C$7,BackendTable[[#This Row],[M1TAvg]]<=$C$8),2,3)","v":0},{"$f":"IF(SUM(BackendTable[M1State])=0,0.01,IF(BackendTable[[#This Row],[M1State]]=VALUE(RIGHT(BA$2,1)),BackendTable[[#This Row],[M1TAvg]],NA()))","v":0.01},{"$f":"IF(BackendTable[[#This Row],[M1State]]=VALUE(RIGHT(BB$2,1)),BackendTable[[#This Row],[M1TAvg]],NA())","v":{"$error":"#N/A"}},{"$f":"IF(BackendTable[[#This Row],[M1State]]=VALUE(RIGHT(BC$2,1)),BackendTable[[#This Row],[M1TAvg]],NA())","v":{"$error":"#N/A"}},{"$f":"IF(BackendTable[[#This Row],[M1State]]=VALUE(RIGHT(BD$2,1)),BackendTable[[#This Row],[M1TAvg]],NA())","v":{"$error":"#N/A"}},{"$f":"_xlfn.SWITCH(TRUE(),BackendTable[[#This Row],[M2TAvg]]<=$C$6,0,AND(BackendTable[[#This Row],[M2TAvg]]>$C$6,BackendTable[[#This Row],[M2TAvg]]<=$C$7),1,AND(BackendTable[[#This Row],[M2TAvg]]>$C$7,BackendTable[[#This Row],[M2TAvg]]<=$C$8),2,3)","v":0},{"$f":"IF(SUM(BackendTable[M2State])=0,0.01,IF(BackendTable[[#This Row],[M2State]]=VALUE(RIGHT(BF$2,1)),BackendTable[[#This Row],[M2TAvg]],NA()))","v":0.01},{"$f":"IF(BackendTable[[#This Row],[M2State]]=VALUE(RIGHT(BG$2,1)),BackendTable[[#This Row],[M2TAvg]],NA())","v":{"$error":"#N/A"}},{"$f":"IF(BackendTable[[#This Row],[M2State]]=VALUE(RIGHT(BH$2,1)),BackendTable[[#This Row],[M2TAvg]],NA())","v":{"$error":"#N/A"}},{"$f":"IF(BackendTable[[#This Row],[M2State]]=VALUE(RIGHT(BI$2,1)),BackendTable[[#This Row],[M2TAvg]],NA())","v":{"$error":"#N/A"}},{"$f":"_xlfn.SWITCH(TRUE(),BackendTable[[#This Row],[M3TAvg]]<=$C$6,0,AND(BackendTable[[#This Row],[M3TAvg]]>$C$6,BackendTable[[#This Row],[M3TAvg]]<=$C$7),1,AND(BackendTable[[#This Row],[M3TAvg]]>$C$7,BackendTable[[#This Row],[M3TAvg]]<=$C$8),2,3)","v":0},{"$f":"IF(SUM(BackendTable[M3State])=0,0.01,IF(BackendTable[[#This Row],[M3State]]=VALUE(RIGHT(BK$2,1)),BackendTable[[#This Row],[M3TAvg]],NA()))","v":0.01},{"$f":"IF(BackendTable[[#This Row],[M3State]]=VALUE(RIGHT(BL$2,1)),BackendTable[[#This Row],[M3TAvg]],NA())","v":{"$error":"#N/A"}},{"$f":"IF(BackendTable[[#This Row],[M3State]]=VALUE(RIGHT(BM$2,1)),BackendTable[[#This Row],[M3TAvg]],NA())","v":{"$error":"#N/A"}},{"$f":"IF(BackendTable[[#This Row],[M3State]]=VALUE(RIGHT(BN$2,1)),BackendTable[[#This Row],[M3TAvg]],NA())","v":{"$error":"#N/A"}}]
[null,"Scaling",0.1,null,null,2,{"$f":"INDEX('Data In'!$C$5:$F$5,1,BackendTable[[#This Row],[Sensor]])","v":0},{"$f":"BackendTable[[#This Row],[Live]]*DataScaling","v":0},{"$f":"INDEX(SensorTable[],MaxRow,MATCH(\"S\"&BackendTable[[#This Row],[Sensor]],SensorTable[#Headers],0))*DataScaling","v":0},{"$f":"INDEX(BackendTable[],BackendTable[[#This Row],[Sensor]],MATCH(\"M\"&BuildNumber&\"T0\",BackendTable[#Headers],0))","v":0},{"$f":"IF(BackendTable[[#This Row],[MaxLive]]>BackendTable[[#This Row],[ActiveStart]],BackendTable[[#This Row],[MaxLive]]-BackendTable[[#This Row],[ActiveStart]],0.01)","v":0.01},0,null,null,null,{"$f":"IFERROR(SUM(BackendTable[[#This Row],[M0T1]:[M0T3]])/COUNTIF(BackendTable[[#This Row],[M0T1]:[M0T3]],\">\"&0),0)","v":0},null,null,null,null,{"$f":"IFERROR(SUM(BackendTable[[#This Row],[M1T1]:[M1T3]])/COUNTIF(BackendTable[[#This Row],[M1T1]:[M1T3]],\">\"&0),0)","v":0},null,null,null,null,{"$f":"IFERROR(SUM(BackendTable[[#This Row],[M2T1]:[M2T3]])/COUNTIF(BackendTable[[#This Row],[M2T1]:[M2T3]],\">\"&0),0)","v":0},null,null,null,null,{"$f":"IFERROR(SUM(BackendTable[[#This Row],[M3T1]:[M3T3]])/COUNTIF(BackendTable[[#This Row],[M3T1]:[M3T3]],\">\"&0),0)","v":0},{"$f":"INDEX(BackendTable[#This Row],1,MATCH(\"M\"&BuildNumber&RIGHT(AF$2,LEN(AF$2)-3),BackendTable[#Headers],0))","v":0},{"$f":"INDEX(BackendTable[#This Row],1,MATCH(\"M\"&BuildNumber&RIGHT(AG$2,LEN(AG$2)-3),BackendTable[#Headers],0))","v":0},{"$f":"INDEX(BackendTable[#This Row],1,MATCH(\"M\"&BuildNumber&RIGHT(AH$2,LEN(AH$2)-3),BackendTable[#Headers],0))","v":0},{"$f":"INDEX(BackendTable[#This Row],1,MATCH(\"M\"&BuildNumber&RIGHT(AI$2,LEN(AI$2)-3),BackendTable[#Headers],0))","v":0},{"$f":"IFERROR(SUM(BackendTable[[#This Row],[SelT1]:[SelT3]])/COUNTIF(BackendTable[[#This Row],[SelT1]:[SelT3]],\">\"&0),0)","v":0},{"$f":"_xlfn.SWITCH(TRUE(),BackendTable[[#This Row],[SelAvg]]<=$C$6,0,AND(BackendTable[[#This Row],[SelAvg]]>$C$6,BackendTable[[#This Row],[SelAvg]]<=$C$7),1,AND(BackendTable[[#This Row],[SelAvg]]>$C$7,BackendTable[[#This Row],[SelAvg]]<=$C$8),2,3)","v":0},{"$f":"IF(BackendTable[[#This Row],[Sel_State]]=VALUE(RIGHT(AL$2,1)),BackendTable[[#This Row],[SelAvg]],NA())","v":0},{"$f":"IF(BackendTable[[#This Row],[Sel_State]]=VALUE(RIGHT(AM$2,1)),BackendTable[[#This Row],[SelAvg]],NA())","v":{"$error":"#N/A"}},{"$f":"IF(BackendTable[[#This Row],[Sel_State]]=VALUE(RIGHT(AN$2,1)),BackendTable[[#This Row],[SelAvg]],NA())","v":{"$error":"#N/A"}},{"$f":"IF(BackendTable[[#This Row],[Sel_State]]=VALUE(RIGHT(AO$2,1)),BackendTable[[#This Row],[SelAvg]],NA())","v":{"$error":"#N/A"}},{"$f":"_xlfn.SWITCH(TRUE(),BackendTable[[#This Row],[ActiveDelta]]<=$C$6,0,AND(BackendTable[[#This Row],[ActiveDelta]]>$C$6,BackendTable[[#This Row],[ActiveDelta]]<=$C$7),1,AND(BackendTable[[#This Row],[ActiveDelta]]>$C$7,BackendTable[[#This Row],[ActiveDelta]]<=$C$8),2,3)","v":0},{"$f":"IF(BackendTable[[#This Row],[ActiveState]]=VALUE(RIGHT(AQ$2,1)),1,NA())","v":1},{"$f":"IF(BackendTable[[#This Row],[ActiveState]]=VALUE(RIGHT(AR$2,1)),1,NA())","v":{"$error":"#N/A"}},{"$f":"IF(BackendTable[[#This Row],[ActiveState]]=VALUE(RIGHT(AS$2,1)),1,NA())","v":{"$error":"#N/A"}},{"$f":"IF(BackendTable[[#This Row],[ActiveState]]=VALUE(RIGHT(AT$2,1)),1,NA())","v":{"$error":"#N/A"}},{"$f":"_xlfn.SWITCH(TRUE(),BackendTable[[#This Row],[M0TAvg]]<=$C$6,0,AND(BackendTable[[#This Row],[M0TAvg]]>$C$6,BackendTable[[#This Row],[M0TAvg]]<=$C$7),1,AND(BackendTable[[#This Row],[M0TAvg]]>$C$7,BackendTable[[#This Row],[M0TAvg]]<=$C$8),2,3)","v":0},{"$f":"IF(SUM(BackendTable[M0State])=0,0.01,IF(BackendTable[[#This Row],[M0State]]=VALUE(RIGHT(AV$2,1)),BackendTable[[#This Row],[M0TAvg]],NA()))","v":0.01},{"$f":"IF(BackendTable[[#This Row],[M0State]]=VALUE(RIGHT(AW$2,1)),BackendTable[[#This Row],[M0TAvg]],NA())","v":{"$error":"#N/A"}},{"$f":"IF(BackendTable[[#This Row],[M0State]]=VALUE(RIGHT(AX$2,1)),BackendTable[[#This Row],[M0TAvg]],NA())","v":{"$error":"#N/A"}},{"$f":"IF(BackendTable[[#This Row],[M0State]]=VALUE(RIGHT(AY$2,1)),BackendTable[[#This Row],[M0TAvg]],NA())","v":{"$error":"#N/A"}},{"$f":"_xlfn.SWITCH(TRUE(),BackendTable[[#This Row],[M1TAvg]]<=$C$6,0,AND(BackendTable[[#This Row],[M1TAvg]]>$C$6,BackendTable[[#This Row],[M1TAvg]]<=$C$7),1,AND(BackendTable[[#This Row],[M1TAvg]]>$C$7,BackendTable[[#This Row],[M1TAvg]]<=$C$8),2,3)","v":0},{"$f":"IF(SUM(BackendTable[M1State])=0,0.01,IF(BackendTable[[#This Row],[M1State]]=VALUE(RIGHT(BA$2,1)),BackendTable[[#This Row],[M1TAvg]],NA()))","v":0.01},{"$f":"IF(BackendTable[[#This Row],[M1State]]=VALUE(RIGHT(BB$2,1)),BackendTable[[#This Row],[M1TAvg]],NA())","v":{"$error":"#N/A"}},{"$f":"IF(BackendTable[[#This Row],[M1State]]=VALUE(RIGHT(BC$2,1)),BackendTable[[#This Row],[M1TAvg]],NA())","v":{"$error":"#N/A"}},{"$f":"IF(BackendTable[[#This Row],[M1State]]=VALUE(RIGHT(BD$2,1)),BackendTable[[#This Row],[M1TAvg]],NA())","v":{"$error":"#N/A"}},{"$f":"_xlfn.SWITCH(TRUE(),BackendTable[[#This Row],[M2TAvg]]<=$C$6,0,AND(BackendTable[[#This Row],[M2TAvg]]>$C$6,BackendTable[[#This Row],[M2TAvg]]<=$C$7),1,AND(BackendTable[[#This Row],[M2TAvg]]>$C$7,BackendTable[[#This Row],[M2TAvg]]<=$C$8),2,3)","v":0},{"$f":"IF(SUM(BackendTable[M2State])=0,0.01,IF(BackendTable[[#This Row],[M2State]]=VALUE(RIGHT(BF$2,1)),BackendTable[[#This Row],[M2TAvg]],NA()))","v":0.01},{"$f":"IF(BackendTable[[#This Row],[M2State]]=VALUE(RIGHT(BG$2,1)),BackendTable[[#This Row],[M2TAvg]],NA())","v":{"$error":"#N/A"}},{"$f":"IF(BackendTable[[#This Row],[M2State]]=VALUE(RIGHT(BH$2,1)),BackendTable[[#This Row],[M2TAvg]],NA())","v":{"$error":"#N/A"}},{"$f":"IF(BackendTable[[#This Row],[M2State]]=VALUE(RIGHT(BI$2,1)),BackendTable[[#This Row],[M2TAvg]],NA())","v":{"$error":"#N/A"}},{"$f":"_xlfn.SWITCH(TRUE(),BackendTable[[#This Row],[M3TAvg]]<=$C$6,0,AND(BackendTable[[#This Row],[M3TAvg]]>$C$6,BackendTable[[#This Row],[M3TAvg]]<=$C$7),1,AND(BackendTable[[#This Row],[M3TAvg]]>$C$7,BackendTable[[#This Row],[M3TAvg]]<=$C$8),2,3)","v":0},{"$f":"IF(SUM(BackendTable[M3State])=0,0.01,IF(BackendTable[[#This Row],[M3State]]=VALUE(RIGHT(BK$2,1)),BackendTable[[#This Row],[M3TAvg]],NA()))","v":0.01},{"$f":"IF(BackendTable[[#This Row],[M3State]]=VALUE(RIGHT(BL$2,1)),BackendTable[[#This Row],[M3TAvg]],NA())","v":{"$error":"#N/A"}},{"$f":"IF(BackendTable[[#This Row],[M3State]]=VALUE(RIGHT(BM$2,1)),BackendTable[[#This Row],[M3TAvg]],NA())","v":{"$error":"#N/A"}},{"$f":"IF(BackendTable[[#This Row],[M3State]]=VALUE(RIGHT(BN$2,1)),BackendTable[[#This Row],[M3TAvg]],NA())","v":{"$error":"#N/A"}}]
[null,"MaxRow",{"$f":"MATCH(MAX(SensorTable[MaxSensor]),SensorTable[MaxSensor],0)","v":1},null,null,3,{"$f":"INDEX('Data In'!$C$5:$F$5,1,BackendTable[[#This Row],[Sensor]])","v":0},{"$f":"BackendTable[[#This Row],[Live]]*DataScaling","v":0},{"$f":"INDEX(SensorTable[],MaxRow,MATCH(\"S\"&BackendTable[[#This Row],[Sensor]],SensorTable[#Headers],0))*DataScaling","v":0},{"$f":"INDEX(BackendTable[],BackendTable[[#This Row],[Sensor]],MATCH(\"M\"&BuildNumber&\"T0\",BackendTable[#Headers],0))","v":0},{"$f":"IF(BackendTable[[#This Row],[MaxLive]]>BackendTable[[#This Row],[ActiveStart]],BackendTable[[#This Row],[MaxLive]]-BackendTable[[#This Row],[ActiveStart]],0.01)","v":0.01},0,null,null,null,{"$f":"IFERROR(SUM(BackendTable[[#This Row],[M0T1]:[M0T3]])/COUNTIF(BackendTable[[#This Row],[M0T1]:[M0T3]],\">\"&0),0)","v":0},null,null,null,null,{"$f":"IFERROR(SUM(BackendTable[[#This Row],[M1T1]:[M1T3]])/COUNTIF(BackendTable[[#This Row],[M1T1]:[M1T3]],\">\"&0),0)","v":0},null,null,null,null,{"$f":"IFERROR(SUM(BackendTable[[#This Row],[M2T1]:[M2T3]])/COUNTIF(BackendTable[[#This Row],[M2T1]:[M2T3]],\">\"&0),0)","v":0},null,null,null,null,{"$f":"IFERROR(SUM(BackendTable[[#This Row],[M3T1]:[M3T3]])/COUNTIF(BackendTable[[#This Row],[M3T1]:[M3T3]],\">\"&0),0)","v":0},{"$f":"INDEX(BackendTable[#This Row],1,MATCH(\"M\"&BuildNumber&RIGHT(AF$2,LEN(AF$2)-3),BackendTable[#Headers],0))","v":0},{"$f":"INDEX(BackendTable[#This Row],1,MATCH(\"M\"&BuildNumber&RIGHT(AG$2,LEN(AG$2)-3),BackendTable[#Headers],0))","v":0},{"$f":"INDEX(BackendTable[#This Row],1,MATCH(\"M\"&BuildNumber&RIGHT(AH$2,LEN(AH$2)-3),BackendTable[#Headers],0))","v":0},{"$f":"INDEX(BackendTable[#This Row],1,MATCH(\"M\"&BuildNumber&RIGHT(AI$2,LEN(AI$2)-3),BackendTable[#Headers],0))","v":0},{"$f":"IFERROR(SUM(BackendTable[[#This Row],[SelT1]:[SelT3]])/COUNTIF(BackendTable[[#This Row],[SelT1]:[SelT3]],\">\"&0),0)","v":0},{"$f":"_xlfn.SWITCH(TRUE(),BackendTable[[#This Row],[SelAvg]]<=$C$6,0,AND(BackendTable[[#This Row],[SelAvg]]>$C$6,BackendTable[[#This Row],[SelAvg]]<=$C$7),1,AND(BackendTable[[#This Row],[SelAvg]]>$C$7,BackendTable[[#This Row],[SelAvg]]<=$C$8),2,3)","v":0},{"$f":"IF(BackendTable[[#This Row],[Sel_State]]=VALUE(RIGHT(AL$2,1)),BackendTable[[#This Row],[SelAvg]],NA())","v":0},{"$f":"IF(BackendTable[[#This Row],[Sel_State]]=VALUE(RIGHT(AM$2,1)),BackendTable[[#This Row],[SelAvg]],NA())","v":{"$error":"#N/A"}},{"$f":"IF(BackendTable[[#This Row],[Sel_State]]=VALUE(RIGHT(AN$2,1)),BackendTable[[#This Row],[SelAvg]],NA())","v":{"$error":"#N/A"}},{"$f":"IF(BackendTable[[#This Row],[Sel_State]]=VALUE(RIGHT(AO$2,1)),BackendTable[[#This Row],[SelAvg]],NA())","v":{"$error":"#N/A"}},{"$f":"_xlfn.SWITCH(TRUE(),BackendTable[[#This Row],[ActiveDelta]]<=$C$6,0,AND(BackendTable[[#This Row],[ActiveDelta]]>$C$6,BackendTable[[#This Row],[ActiveDelta]]<=$C$7),1,AND(BackendTable[[#This Row],[ActiveDelta]]>$C$7,BackendTable[[#This Row],[ActiveDelta]]<=$C$8),2,3)","v":0},{"$f":"IF(BackendTable[[#This Row],[ActiveState]]=VALUE(RIGHT(AQ$2,1)),1,NA())","v":1},{"$f":"IF(BackendTable[[#This Row],[ActiveState]]=VALUE(RIGHT(AR$2,1)),1,NA())","v":{"$error":"#N/A"}},{"$f":"IF(BackendTable[[#This Row],[ActiveState]]=VALUE(RIGHT(AS$2,1)),1,NA())","v":{"$error":"#N/A"}},{"$f":"IF(BackendTable[[#This Row],[ActiveState]]=VALUE(RIGHT(AT$2,1)),1,NA())","v":{"$error":"#N/A"}},{"$f":"_xlfn.SWITCH(TRUE(),BackendTable[[#This Row],[M0TAvg]]<=$C$6,0,AND(BackendTable[[#This Row],[M0TAvg]]>$C$6,BackendTable[[#This Row],[M0TAvg]]<=$C$7),1,AND(BackendTable[[#This Row],[M0TAvg]]>$C$7,BackendTable[[#This Row],[M0TAvg]]<=$C$8),2,3)","v":0},{"$f":"IF(SUM(BackendTable[M0State])=0,0.01,IF(BackendTable[[#This Row],[M0State]]=VALUE(RIGHT(AV$2,1)),BackendTable[[#This Row],[M0TAvg]],NA()))","v":0.01},{"$f":"IF(BackendTable[[#This Row],[M0State]]=VALUE(RIGHT(AW$2,1)),BackendTable[[#This Row],[M0TAvg]],NA())","v":{"$error":"#N/A"}},{"$f":"IF(BackendTable[[#This Row],[M0State]]=VALUE(RIGHT(AX$2,1)),BackendTable[[#This Row],[M0TAvg]],NA())","v":{"$error":"#N/A"}},{"$f":"IF(BackendTable[[#This Row],[M0State]]=VALUE(RIGHT(AY$2,1)),BackendTable[[#This Row],[M0TAvg]],NA())","v":{"$error":"#N/A"}},{"$f":"_xlfn.SWITCH(TRUE(),BackendTable[[#This Row],[M1TAvg]]<=$C$6,0,AND(BackendTable[[#This Row],[M1TAvg]]>$C$6,BackendTable[[#This Row],[M1TAvg]]<=$C$7),1,AND(BackendTable[[#This Row],[M1TAvg]]>$C$7,BackendTable[[#This Row],[M1TAvg]]<=$C$8),2,3)","v":0},{"$f":"IF(SUM(BackendTable[M1State])=0,0.01,IF(BackendTable[[#This Row],[M1State]]=VALUE(RIGHT(BA$2,1)),BackendTable[[#This Row],[M1TAvg]],NA()))","v":0.01},{"$f":"IF(BackendTable[[#This Row],[M1State]]=VALUE(RIGHT(BB$2,1)),BackendTable[[#This Row],[M1TAvg]],NA())","v":{"$error":"#N/A"}},{"$f":"IF(BackendTable[[#This Row],[M1State]]=VALUE(RIGHT(BC$2,1)),BackendTable[[#This Row],[M1TAvg]],NA())","v":{"$error":"#N/A"}},{"$f":"IF(BackendTable[[#This Row],[M1State]]=VALUE(RIGHT(BD$2,1)),BackendTable[[#This Row],[M1TAvg]],NA())","v":{"$error":"#N/A"}},{"$f":"_xlfn.SWITCH(TRUE(),BackendTable[[#This Row],[M2TAvg]]<=$C$6,0,AND(BackendTable[[#This Row],[M2TAvg]]>$C$6,BackendTable[[#This Row],[M2TAvg]]<=$C$7),1,AND(BackendTable[[#This Row],[M2TAvg]]>$C$7,BackendTable[[#This Row],[M2TAvg]]<=$C$8),2,3)","v":0},{"$f":"IF(SUM(BackendTable[M2State])=0,0.01,IF(BackendTable[[#This Row],[M2State]]=VALUE(RIGHT(BF$2,1)),BackendTable[[#This Row],[M2TAvg]],NA()))","v":0.01},{"$f":"IF(BackendTable[[#This Row],[M2State]]=VALUE(RIGHT(BG$2,1)),BackendTable[[#This Row],[M2TAvg]],NA())","v":{"$error":"#N/A"}},{"$f":"IF(BackendTable[[#This Row],[M2State]]=VALUE(RIGHT(BH$2,1)),BackendTable[[#This Row],[M2TAvg]],NA())","v":{"$error":"#N/A"}},{"$f":"IF(BackendTable[[#This Row],[M2State]]=VALUE(RIGHT(BI$2,1)),BackendTable[[#This Row],[M2TAvg]],NA())","v":{"$error":"#N/A"}},{"$f":"_xlfn.SWITCH(TRUE(),BackendTable[[#This Row],[M3TAvg]]<=$C$6,0,AND(BackendTable[[#This Row],[M3TAvg]]>$C$6,BackendTable[[#This Row],[M3TAvg]]<=$C$7),1,AND(BackendTable[[#This Row],[M3TAvg]]>$C$7,BackendTable[[#This Row],[M3TAvg]]<=$C$8),2,3)","v":0},{"$f":"IF(SUM(BackendTable[M3State])=0,0.01,IF(BackendTable[[#This Row],[M3State]]=VALUE(RIGHT(BK$2,1)),BackendTable[[#This Row],[M3TAvg]],NA()))","v":0.01},{"$f":"IF(BackendTable[[#This Row],[M3State]]=VALUE(RIGHT(BL$2,1)),BackendTable[[#This Row],[M3TAvg]],NA())","v":{"$error":"#N/A"}},{"$f":"IF(BackendTable[[#This Row],[M3State]]=VALUE(RIGHT(BM$2,1)),BackendTable[[#This Row],[M3TAvg]],NA())","v":{"$error":"#N/A"}},{"$f":"IF(BackendTable[[#This Row],[M3State]]=VALUE(RIGHT(BN$2,1)),BackendTable[[#This Row],[M3TAvg]],NA())","v":{"$error":"#N/A"}}]
[null,"NoneMax",10,null,null,4,{"$f":"INDEX('Data In'!$C$5:$F$5,1,BackendTable[[#This Row],[Sensor]])","v":0},{"$f":"BackendTable[[#This Row],[Live]]*DataScaling","v":0},{"$f":"INDEX(SensorTable[],MaxRow,MATCH(\"S\"&BackendTable[[#This Row],[Sensor]],SensorTable[#Headers],0))*DataScaling","v":0},{"$f":"INDEX(BackendTable[],BackendTable[[#This Row],[Sensor]],MATCH(\"M\"&BuildNumber&\"T0\",BackendTable[#Headers],0))","v":0},{"$f":"IF(BackendTable[[#This Row],[MaxLive]]>BackendTable[[#This Row],[ActiveStart]],BackendTable[[#This Row],[MaxLive]]-BackendTable[[#This Row],[ActiveStart]],0.01)","v":0.01},0,null,null,null,{"$f":"IFERROR(SUM(BackendTable[[#This Row],[M0T1]:[M0T3]])/COUNTIF(BackendTable[[#This Row],[M0T1]:[M0T3]],\">\"&0),0)","v":0},null,null,null,null,{"$f":"IFERROR(SUM(BackendTable[[#This Row],[M1T1]:[M1T3]])/COUNTIF(BackendTable[[#This Row],[M1T1]:[M1T3]],\">\"&0),0)","v":0},null,null,null,null,{"$f":"IFERROR(SUM(BackendTable[[#This Row],[M2T1]:[M2T3]])/COUNTIF(BackendTable[[#This Row],[M2T1]:[M2T3]],\">\"&0),0)","v":0},null,null,null,null,{"$f":"IFERROR(SUM(BackendTable[[#This Row],[M3T1]:[M3T3]])/COUNTIF(BackendTable[[#This Row],[M3T1]:[M3T3]],\">\"&0),0)","v":0},{"$f":"INDEX(BackendTable[#This Row],1,MATCH(\"M\"&BuildNumber&RIGHT(AF$2,LEN(AF$2)-3),BackendTable[#Headers],0))","v":0},{"$f":"INDEX(BackendTable[#This Row],1,MATCH(\"M\"&BuildNumber&RIGHT(AG$2,LEN(AG$2)-3),BackendTable[#Headers],0))","v":0},{"$f":"INDEX(BackendTable[#This Row],1,MATCH(\"M\"&BuildNumber&RIGHT(AH$2,LEN(AH$2)-3),BackendTable[#Headers],0))","v":0},{"$f":"INDEX(BackendTable[#This Row],1,MATCH(\"M\"&BuildNumber&RIGHT(AI$2,LEN(AI$2)-3),BackendTable[#Headers],0))","v":0},{"$f":"IFERROR(SUM(BackendTable[[#This Row],[SelT1]:[SelT3]])/COUNTIF(BackendTable[[#This Row],[SelT1]:[SelT3]],\">\"&0),0)","v":0},{"$f":"_xlfn.SWITCH(TRUE(),BackendTable[[#This Row],[SelAvg]]<=$C$6,0,AND(BackendTable[[#This Row],[SelAvg]]>$C$6,BackendTable[[#This Row],[SelAvg]]<=$C$7),1,AND(BackendTable[[#This Row],[SelAvg]]>$C$7,BackendTable[[#This Row],[SelAvg]]<=$C$8),2,3)","v":0},{"$f":"IF(BackendTable[[#This Row],[Sel_State]]=VALUE(RIGHT(AL$2,1)),BackendTable[[#This Row],[SelAvg]],NA())","v":0},{"$f":"IF(BackendTable[[#This Row],[Sel_State]]=VALUE(RIGHT(AM$2,1)),BackendTable[[#This Row],[SelAvg]],NA())","v":{"$error":"#N/A"}},{"$f":"IF(BackendTable[[#This Row],[Sel_State]]=VALUE(RIGHT(AN$2,1)),BackendTable[[#This Row],[SelAvg]],NA())","v":{"$error":"#N/A"}},{"$f":"IF(BackendTable[[#This Row],[Sel_State]]=VALUE(RIGHT(AO$2,1)),BackendTable[[#This Row],[SelAvg]],NA())","v":{"$error":"#N/A"}},{"$f":"_xlfn.SWITCH(TRUE(),BackendTable[[#This Row],[ActiveDelta]]<=$C$6,0,AND(BackendTable[[#This Row],[ActiveDelta]]>$C$6,BackendTable[[#This Row],[ActiveDelta]]<=$C$7),1,AND(BackendTable[[#This Row],[ActiveDelta]]>$C$7,BackendTable[[#This Row],[ActiveDelta]]<=$C$8),2,3)","v":0},{"$f":"IF(BackendTable[[#This Row],[ActiveState]]=VALUE(RIGHT(AQ$2,1)),1,NA())","v":1},{"$f":"IF(BackendTable[[#This Row],[ActiveState]]=VALUE(RIGHT(AR$2,1)),1,NA())","v":{"$error":"#N/A"}},{"$f":"IF(BackendTable[[#This Row],[ActiveState]]=VALUE(RIGHT(AS$2,1)),1,NA())","v":{"$error":"#N/A"}},{"$f":"IF(BackendTable[[#This Row],[ActiveState]]=VALUE(RIGHT(AT$2,1)),1,NA())","v":{"$error":"#N/A"}},{"$f":"_xlfn.SWITCH(TRUE(),BackendTable[[#This Row],[M0TAvg]]<=$C$6,0,AND(BackendTable[[#This Row],[M0TAvg]]>$C$6,BackendTable[[#This Row],[M0TAvg]]<=$C$7),1,AND(BackendTable[[#This Row],[M0TAvg]]>$C$7,BackendTable[[#This Row],[M0TAvg]]<=$C$8),2,3)","v":0},{"$f":"IF(SUM(BackendTable[M0State])=0,0.01,IF(BackendTable[[#This Row],[M0State]]=VALUE(RIGHT(AV$2,1)),BackendTable[[#This Row],[M0TAvg]],NA()))","v":0.01},{"$f":"IF(BackendTable[[#This Row],[M0State]]=VALUE(RIGHT(AW$2,1)),BackendTable[[#This Row],[M0TAvg]],NA())","v":{"$error":"#N/A"}},{"$f":"IF(BackendTable[[#This Row],[M0State]]=VALUE(RIGHT(AX$2,1)),BackendTable[[#This Row],[M0TAvg]],NA())","v":{"$error":"#N/A"}},{"$f":"IF(BackendTable[[#This Row],[M0State]]=VALUE(RIGHT(AY$2,1)),BackendTable[[#This Row],[M0TAvg]],NA())","v":{"$error":"#N/A"}},{"$f":"_xlfn.SWITCH(TRUE(),BackendTable[[#This Row],[M1TAvg]]<=$C$6,0,AND(BackendTable[[#This Row],[M1TAvg]]>$C$6,BackendTable[[#This Row],[M1TAvg]]<=$C$7),1,AND(BackendTable[[#This Row],[M1TAvg]]>$C$7,BackendTable[[#This Row],[M1TAvg]]<=$C$8),2,3)","v":0},{"$f":"IF(SUM(BackendTable[M1State])=0,0.01,IF(BackendTable[[#This Row],[M1State]]=VALUE(RIGHT(BA$2,1)),BackendTable[[#This Row],[M1TAvg]],NA()))","v":0.01},{"$f":"IF(BackendTable[[#This Row],[M1State]]=VALUE(RIGHT(BB$2,1)),BackendTable[[#This Row],[M1TAvg]],NA())","v":{"$error":"#N/A"}},{"$f":"IF(BackendTable[[#This Row],[M1State]]=VALUE(RIGHT(BC$2,1)),BackendTable[[#This Row],[M1TAvg]],NA())","v":{"$error":"#N/A"}},{"$f":"IF(BackendTable[[#This Row],[M1State]]=VALUE(RIGHT(BD$2,1)),BackendTable[[#This Row],[M1TAvg]],NA())","v":{"$error":"#N/A"}},{"$f":"_xlfn.SWITCH(TRUE(),BackendTable[[#This Row],[M2TAvg]]<=$C$6,0,AND(BackendTable[[#This Row],[M2TAvg]]>$C$6,BackendTable[[#This Row],[M2TAvg]]<=$C$7),1,AND(BackendTable[[#This Row],[M2TAvg]]>$C$7,BackendTable[[#This Row],[M2TAvg]]<=$C$8),2,3)","v":0},{"$f":"IF(SUM(BackendTable[M2State])=0,0.01,IF(BackendTable[[#This Row],[M2State]]=VALUE(RIGHT(BF$2,1)),BackendTable[[#This Row],[M2TAvg]],NA()))","v":0.01},{"$f":"IF(BackendTable[[#This Row],[M2State]]=VALUE(RIGHT(BG$2,1)),BackendTable[[#This Row],[M2TAvg]],NA())","v":{"$error":"#N/A"}},{"$f":"IF(BackendTable[[#This Row],[M2State]]=VALUE(RIGHT(BH$2,1)),BackendTable[[#This Row],[M2TAvg]],NA())","v":{"$error":"#N/A"}},{"$f":"IF(BackendTable[[#This Row],[M2State]]=VALUE(RIGHT(BI$2,1)),BackendTable[[#This Row],[M2TAvg]],NA())","v":{"$error":"#N/A"}},{"$f":"_xlfn.SWITCH(TRUE(),BackendTable[[#This Row],[M3TAvg]]<=$C$6,0,AND(BackendTable[[#This Row],[M3TAvg]]>$C$6,BackendTable[[#This Row],[M3TAvg]]<=$C$7),1,AND(BackendTable[[#This Row],[M3TAvg]]>$C$7,BackendTable[[#This Row],[M3TAvg]]<=$C$8),2,3)","v":0},{"$f":"IF(SUM(BackendTable[M3State])=0,0.01,IF(BackendTable[[#This Row],[M3State]]=VALUE(RIGHT(BK$2,1)),BackendTable[[#This Row],[M3TAvg]],NA()))","v":0.01},{"$f":"IF(BackendTable[[#This Row],[M3State]]=VALUE(RIGHT(BL$2,1)),BackendTable[[#This Row],[M3TAvg]],NA())","v":{"$error":"#N/A"}},{"$f":"IF(BackendTable[[#This Row],[M3State]]=VALUE(RIGHT(BM$2,1)),BackendTable[[#This Row],[M3TAvg]],NA())","v":{"$error":"#N/A"}},{"$f":"IF(BackendTable[[#This Row],[M3State]]=VALUE(RIGHT(BN$2,1)),BackendTable[[#This Row],[M3TAvg]],NA())","v":{"$error":"#N/A"}}]
[null,"LowMax",30]
[null,"MedMax",50]
[null,"NoneSize",{"$f":"C6-0","v":10}]
[null,"LowSize",{"$f":"C7-C6","v":20}]
[null,"MedSize",{"$f":"C8-C7","v":20}]
[null,"HighSize",{"$f":"100-C8","v":50}]
[null,"Next Trial",{"$f":"COUNTIF($AG$3:$AI$3,\">\"&0)+1","v":1}]
[null,"M0LineStart",{"$f":"MIN(BackendTable[M0TAvg])","v":0}]
[null,"M0LineEnd",{"$f":"MAX(BackendTable[M0TAvg])","v":0}]
[null,{"$f":"TT!$O$56","v":"Pressure range"},{"$f":"C15-C14","v":0},null,{"$f":"AVERAGE(C14:C15)","v":0}]
[null,"M1LineStart",{"$f":"MIN(BackendTable[M1TAvg])","v":0}]
[null,"M1LineEnd",{"$f":"MAX(BackendTable[M1TAvg])","v":0}]
[null,"Pressure range",{"$f":"C18-C17","v":0},null,{"$f":"AVERAGE(C17:C18)","v":0}]
[null,"M2LineStart",{"$f":"MIN(BackendTable[M2TAvg])","v":0}]
[null,"M2LineEnd",{"$f":"MAX(BackendTable[M2TAvg])","v":0}]
[null,"Pressure range",{"$f":"C21-C20","v":0},null,{"$f":"AVERAGE(C20:C21)","v":0}]
[null,"M3LineStart",{"$f":"MIN(BackendTable[M3TAvg])","v":0}]
[null,"M3LineEnd",{"$f":"MAX(BackendTable[M3TAvg])","v":0}]
[null,"Pressure range",{"$f":"C24-C23","v":0},null,{"$f":"AVERAGE(C23:C24)","v":0}]
[null,"Trial State"]
[null,"Start Time"]
[null,"CurrentTime"]
[null,"Duration"]
[null,"Pull time"]

{"sheet":"Sheet1","index":1,"n_rows":102,"n_cols":15,"rows_kept":102,"cut":false,"hidden":true,"merged":[]}
[]
[null,"Row","S1","S2","S3","S4","MaxSensor"]
[null,{"$f":"ROW()-ROW(SensorTable[#Headers])","v":1},{"$f":"'Data In'!C8","v":0},{"$f":"'Data In'!D8","v":0},{"$f":"'Data In'!E8","v":0},{"$f":"'Data In'!F8","v":0},{"$f":"MAX(SensorTable[[#This Row],[S1]:[S4]])","v":0}]
[null,{"$f":"ROW()-ROW(SensorTable[#Headers])","v":2},{"$f":"'Data In'!C9","v":0},{"$f":"'Data In'!D9","v":0},{"$f":"'Data In'!E9","v":0},{"$f":"'Data In'!F9","v":0},{"$f":"MAX(SensorTable[[#This Row],[S1]:[S4]])","v":0},null,null,17.900000000000002,20.200000000000003,4.7,9.9,null,17.900000000000002]
[null,{"$f":"ROW()-ROW(SensorTable[#Headers])","v":3},{"$f":"'Data In'!C10","v":0},{"$f":"'Data In'!D10","v":0},{"$f":"'Data In'!E10","v":0},{"$f":"'Data In'!F10","v":0},{"$f":"MAX(SensorTable[[#This Row],[S1]:[S4]])","v":0},null,null,null,null,null,null,null,20.200000000000003]
[null,{"$f":"ROW()-ROW(SensorTable[#Headers])","v":4},{"$f":"'Data In'!C11","v":0},{"$f":"'Data In'!D11","v":0},{"$f":"'Data In'!E11","v":0},{"$f":"'Data In'!F11","v":0},{"$f":"MAX(SensorTable[[#This Row],[S1]:[S4]])","v":0},null,null,null,null,null,null,null,4.7]
[null,{"$f":"ROW()-ROW(SensorTable[#Headers])","v":5},{"$f":"'Data In'!C12","v":0},{"$f":"'Data In'!D12","v":0},{"$f":"'Data In'!E12","v":0},{"$f":"'Data In'!F12","v":0},{"$f":"MAX(SensorTable[[#This Row],[S1]:[S4]])","v":0},null,null,null,null,null,null,null,9.9]
[null,{"$f":"ROW()-ROW(SensorTable[#Headers])","v":6},{"$f":"'Data In'!C13","v":0},{"$f":"'Data In'!D13","v":0},{"$f":"'Data In'!E13","v":0},{"$f":"'Data In'!F13","v":0},{"$f":"MAX(SensorTable[[#This Row],[S1]:[S4]])","v":0}]
[null,{"$f":"ROW()-ROW(SensorTable[#Headers])","v":7},{"$f":"'Data In'!C14","v":0},{"$f":"'Data In'!D14","v":0},{"$f":"'Data In'!E14","v":0},{"$f":"'Data In'!F14","v":0},{"$f":"MAX(SensorTable[[#This Row],[S1]:[S4]])","v":0}]
[null,{"$f":"ROW()-ROW(SensorTable[#Headers])","v":8},{"$f":"'Data In'!C15","v":0},{"$f":"'Data In'!D15","v":0},{"$f":"'Data In'!E15","v":0},{"$f":"'Data In'!F15","v":0},{"$f":"MAX(SensorTable[[#This Row],[S1]:[S4]])","v":0}]
[null,{"$f":"ROW()-ROW(SensorTable[#Headers])","v":9},{"$f":"'Data In'!C16","v":0},{"$f":"'Data In'!D16","v":0},{"$f":"'Data In'!E16","v":0},{"$f":"'Data In'!F16","v":0},{"$f":"MAX(SensorTable[[#This Row],[S1]:[S4]])","v":0}]
[null,{"$f":"ROW()-ROW(SensorTable[#Headers])","v":10},{"$f":"'Data In'!C17","v":0},{"$f":"'Data In'!D17","v":0},{"$f":"'Data In'!E17","v":0},{"$f":"'Data In'!F17","v":0},{"$f":"MAX(SensorTable[[#This Row],[S1]:[S4]])","v":0}]
[null,{"$f":"ROW()-ROW(SensorTable[#Headers])","v":11},{"$f":"'Data In'!C18","v":0},{"$f":"'Data In'!D18","v":0},{"$f":"'Data In'!E18","v":0},{"$f":"'Data In'!F18","v":0},{"$f":"MAX(SensorTable[[#This Row],[S1]:[S4]])","v":0}]
[null,{"$f":"ROW()-ROW(SensorTable[#Headers])","v":12},{"$f":"'Data In'!C19","v":0},{"$f":"'Data In'!D19","v":0},{"$f":"'Data In'!E19","v":0},{"$f":"'Data In'!F19","v":0},{"$f":"MAX(SensorTable[[#This Row],[S1]:[S4]])","v":0}]
[null,{"$f":"ROW()-ROW(SensorTable[#Headers])","v":13},{"$f":"'Data In'!C20","v":0},{"$f":"'Data In'!D20","v":0},{"$f":"'Data In'!E20","v":0},{"$f":"'Data In'!F20","v":0},{"$f":"MAX(SensorTable[[#This Row],[S1]:[S4]])","v":0}]
[null,{"$f":"ROW()-ROW(SensorTable[#Headers])","v":14},{"$f":"'Data In'!C21","v":0},{"$f":"'Data In'!D21","v":0},{"$f":"'Data In'!E21","v":0},{"$f":"'Data In'!F21","v":0},{"$f":"MAX(SensorTable[[#This Row],[S1]:[S4]])","v":0}]
[null,{"$f":"ROW()-ROW(SensorTable[#Headers])","v":15},{"$f":"'Data In'!C22","v":0},{"$f":"'Data In'!D22","v":0},{"$f":"'Data In'!E22","v":0},{"$f":"'Data In'!F22","v":0},{"$f":"MAX(SensorTable[[#This Row],[S1]:[S4]])","v":0}]
[null,{"$f":"ROW()-ROW(SensorTable[#Headers])","v":16},{"$f":"'Data In'!C23","v":0},{"$f":"'Data In'!D23","v":0},{"$f":"'Data In'!E23","v":0},{"$f":"'Data In'!F23","v":0},{"$f":"MAX(SensorTable[[#This Row],[S1]:[S4]])","v":0}]
[null,{"$f":"ROW()-ROW(SensorTable[#Headers])","v":17},{"$f":"'Data In'!C24","v":0},{"$f":"'Data In'!D24","v":0},{"$f":"'Data In'!E24","v":0},{"$f":"'Data In'!F24","v":0},{"$f":"MAX(SensorTable[[#This Row],[S1]:[S4]])","v":0}]
[null,{"$f":"ROW()-ROW(SensorTable[#Headers])","v":18},{"$f":"'Data In'!C25","v":0},{"$f":"'Data In'!D25","v":0},{"$f":"'Data In'!E25","v":0},{"$f":"'Data In'!F25","v":0},{"$f":"MAX(SensorTable[[#This Row],[S1]:[S4]])","v":0}]
[null,{"$f":"ROW()-ROW(SensorTable[#Headers])","v":19},{"$f":"'Data In'!C26","v":0},{"$f":"'Data In'!D26","v":0},{"$f":"'Data In'!E26","v":0},{"$f":"'Data In'!F26","v":0},{"$f":"MAX(SensorTable[[#This Row],[S1]:[S4]])","v":0}]
[null,{"$f":"ROW()-ROW(SensorTable[#Headers])","v":20},{"$f":"'Data In'!C27","v":0},{"$f":"'Data In'!D27","v":0},{"$f":"'Data In'!E27","v":0},{"$f":"'Data In'!F27","v":0},{"$f":"MAX(SensorTable[[#This Row],[S1]:[S4]])","v":0}]
[null,{"$f":"ROW()-ROW(SensorTable[#Headers])","v":21},{"$f":"'Data In'!C28","v":0},{"$f":"'Data In'!D28","v":0},{"$f":"'Data In'!E28","v":0},{"$f":"'Data In'!F28","v":0},{"$f":"MAX(SensorTable[[#This Row],[S1]:[S4]])","v":0}]
[null,{"$f":"ROW()-ROW(SensorTable[#Headers])","v":22},{"$f":"'Data In'!C29","v":0},{"$f":"'Data In'!D29","v":0},{"$f":"'Data In'!E29","v":0},{"$f":"'Data In'!F29","v":0},{"$f":"MAX(SensorTable[[#This Row],[S1]:[S4]])","v":0}]
[null,{"$f":"ROW()-ROW(SensorTable[#Headers])","v":23},{"$f":"'Data In'!C30","v":0},{"$f":"'Data In'!D30","v":0},{"$f":"'Data In'!E30","v":0},{"$f":"'Data In'!F30","v":0},{"$f":"MAX(SensorTable[[#This Row],[S1]:[S4]])","v":0}]
[null,{"$f":"ROW()-ROW(SensorTable[#Headers])","v":24},{"$f":"'Data In'!C31","v":0},{"$f":"'Data In'!D31","v":0},{"$f":"'Data In'!E31","v":0},{"$f":"'Data In'!F31","v":0},{"$f":"MAX(SensorTable[[#This Row],[S1]:[S4]])","v":0}]
[null,{"$f":"ROW()-ROW(SensorTable[#Headers])","v":25},{"$f":"'Data In'!C32","v":0},{"$f":"'Data In'!D32","v":0},{"$f":"'Data In'!E32","v":0},{"$f":"'Data In'!F32","v":0},{"$f":"MAX(SensorTable[[#This Row],[S1]:[S4]])","v":0}]
[null,{"$f":"ROW()-ROW(SensorTable[#Headers])","v":26},{"$f":"'Data In'!C33","v":0},{"$f":"'Data In'!D33","v":0},{"$f":"'Data In'!E33","v":0},{"$f":"'Data In'!F33","v":0},{"$f":"MAX(SensorTable[[#This Row],[S1]:[S4]])","v":0}]
[null,{"$f":"ROW()-ROW(SensorTable[#Headers])","v":27},{"$f":"'Data In'!C34","v":0},{"$f":"'Data In'!D34","v":0},{"$f":"'Data In'!E34","v":0},{"$f":"'Data In'!F34","v":0},{"$f":"MAX(SensorTable[[#This Row],[S1]:[S4]])","v":0}]
[null,{"$f":"ROW()-ROW(SensorTable[#Headers])","v":28},{"$f":"'Data In'!C35","v":0},{"$f":"'Data In'!D35","v":0},{"$f":"'Data In'!E35","v":0},{"$f":"'Data In'!F35","v":0},{"$f":"MAX(SensorTable[[#This Row],[S1]:[S4]])","v":0}]
[null,{"$f":"ROW()-ROW(SensorTable[#Headers])","v":29},{"$f":"'Data In'!C36","v":0},{"$f":"'Data In'!D36","v":0},{"$f":"'Data In'!E36","v":0},{"$f":"'Data In'!F36","v":0},{"$f":"MAX(SensorTable[[#This Row],[S1]:[S4]])","v":0}]
[null,{"$f":"ROW()-ROW(SensorTable[#Headers])","v":30},{"$f":"'Data In'!C37","v":0},{"$f":"'Data In'!D37","v":0},{"$f":"'Data In'!E37","v":0},{"$f":"'Data In'!F37","v":0},{"$f":"MAX(SensorTable[[#This Row],[S1]:[S4]])","v":0}]
[null,{"$f":"ROW()-ROW(SensorTable[#Headers])","v":31},{"$f":"'Data In'!C38","v":0},{"$f":"'Data In'!D38","v":0},{"$f":"'Data In'!E38","v":0},{"$f":"'Data In'!F38","v":0},{"$f":"MAX(SensorTable[[#This Row],[S1]:[S4]])","v":0}]
[null,{"$f":"ROW()-ROW(SensorTable[#Headers])","v":32},{"$f":"'Data In'!C39","v":0},{"$f":"'Data In'!D39","v":0},{"$f":"'Data In'!E39","v":0},{"$f":"'Data In'!F39","v":0},{"$f":"MAX(SensorTable[[#This Row],[S1]:[S4]])","v":0}]
[null,{"$f":"ROW()-ROW(SensorTable[#Headers])","v":33},{"$f":"'Data In'!C40","v":0},{"$f":"'Data In'!D40","v":0},{"$f":"'Data In'!E40","v":0},{"$f":"'Data In'!F40","v":0},{"$f":"MAX(SensorTable[[#This Row],[S1]:[S4]])","v":0}]
[null,{"$f":"ROW()-ROW(SensorTable[#Headers])","v":34},{"$f":"'Data In'!C41","v":0},{"$f":"'Data In'!D41","v":0},{"$f":"'Data In'!E41","v":0},{"$f":"'Data In'!F41","v":0},{"$f":"MAX(SensorTable[[#This Row],[S1]:[S4]])","v":0}]
[null,{"$f":"ROW()-ROW(SensorTable[#Headers])","v":35},{"$f":"'Data In'!C42","v":0},{"$f":"'Data In'!D42","v":0},{"$f":"'Data In'!E42","v":0},{"$f":"'Data In'!F42","v":0},{"$f":"MAX(SensorTable[[#This Row],[S1]:[S4]])","v":0}]
[null,{"$f":"ROW()-ROW(SensorTable[#Headers])","v":36},{"$f":"'Data In'!C43","v":0},{"$f":"'Data In'!D43","v":0},{"$f":"'Data In'!E43","v":0},{"$f":"'Data In'!F43","v":0},{"$f":"MAX(SensorTable[[#This Row],[S1]:[S4]])","v":0}]
[null,{"$f":"ROW()-ROW(SensorTable[#Headers])","v":37},{"$f":"'Data In'!C44","v":0},{"$f":"'Data In'!D44","v":0},{"$f":"'Data In'!E44","v":0},{"$f":"'Data In'!F44","v":0},{"$f":"MAX(SensorTable[[#This Row],[S1]:[S4]])","v":0}]
[null,{"$f":"ROW()-ROW(SensorTable[#Headers])","v":38},{"$f":"'Data In'!C45","v":0},{"$f":"'Data In'!D45","v":0},{"$f":"'Data In'!E45","v":0},{"$f":"'Data In'!F45","v":0},{"$f":"MAX(SensorTable[[#This Row],[S1]:[S4]])","v":0}]
[null,{"$f":"ROW()-ROW(SensorTable[#Headers])","v":39},{"$f":"'Data In'!C46","v":0},{"$f":"'Data In'!D46","v":0},{"$f":"'Data In'!E46","v":0},{"$f":"'Data In'!F46","v":0},{"$f":"MAX(SensorTable[[#This Row],[S1]:[S4]])","v":0}]
[null,{"$f":"ROW()-ROW(SensorTable[#Headers])","v":40},{"$f":"'Data In'!C47","v":0},{"$f":"'Data In'!D47","v":0},{"$f":"'Data In'!E47","v":0},{"$f":"'Data In'!F47","v":0},{"$f":"MAX(SensorTable[[#This Row],[S1]:[S4]])","v":0}]
[null,{"$f":"ROW()-ROW(SensorTable[#Headers])","v":41},{"$f":"'Data In'!C48","v":0},{"$f":"'Data In'!D48","v":0},{"$f":"'Data In'!E48","v":0},{"$f":"'Data In'!F48","v":0},{"$f":"MAX(SensorTable[[#This Row],[S1]:[S4]])","v":0}]
[null,{"$f":"ROW()-ROW(SensorTable[#Headers])","v":42},{"$f":"'Data In'!C49","v":0},{"$f":"'Data In'!D49","v":0},{"$f":"'Data In'!E49","v":0},{"$f":"'Data In'!F49","v":0},{"$f":"MAX(SensorTable[[#This Row],[S1]:[S4]])","v":0}]
[null,{"$f":"ROW()-ROW(SensorTable[#Headers])","v":43},{"$f":"'Data In'!C50","v":0},{"$f":"'Data In'!D50","v":0},{"$f":"'Data In'!E50","v":0},{"$f":"'Data In'!F50","v":0},{"$f":"MAX(SensorTable[[#This Row],[S1]:[S4]])","v":0}]
[null,{"$f":"ROW()-ROW(SensorTable[#Headers])","v":44},{"$f":"'Data In'!C51","v":0},{"$f":"'Data In'!D51","v":0},{"$f":"'Data In'!E51","v":0},{"$f":"'Data In'!F51","v":0},{"$f":"MAX(SensorTable[[#This Row],[S1]:[S4]])","v":0}]
[null,{"$f":"ROW()-ROW(SensorTable[#Headers])","v":45},{"$f":"'Data In'!C52","v":0},{"$f":"'Data In'!D52","v":0},{"$f":"'Data In'!E52","v":0},{"$f":"'Data In'!F52","v":0},{"$f":"MAX(SensorTable[[#This Row],[S1]:[S4]])","v":0}]
[null,{"$f":"ROW()-ROW(SensorTable[#Headers])","v":46},{"$f":"'Data In'!C53","v":0},{"$f":"'Data In'!D53","v":0},{"$f":"'Data In'!E53","v":0},{"$f":"'Data In'!F53","v":0},{"$f":"MAX(SensorTable[[#This Row],[S1]:[S4]])","v":0}]
[null,{"$f":"ROW()-ROW(SensorTable[#Headers])","v":47},{"$f":"'Data In'!C54","v":0},{"$f":"'Data In'!D54","v":0},{"$f":"'Data In'!E54","v":0},{"$f":"'Data In'!F54","v":0},{"$f":"MAX(SensorTable[[#This Row],[S1]:[S4]])","v":0}]
[null,{"$f":"ROW()-ROW(SensorTable[#Headers])","v":48},{"$f":"'Data In'!C55","v":0},{"$f":"'Data In'!D55","v":0},{"$f":"'Data In'!E55","v":0},{"$f":"'Data In'!F55","v":0},{"$f":"MAX(SensorTable[[#This Row],[S1]:[S4]])","v":0}]
[null,{"$f":"ROW()-ROW(SensorTable[#Headers])","v":49},{"$f":"'Data In'!C56","v":0},{"$f":"'Data In'!D56","v":0},{"$f":"'Data In'!E56","v":0},{"$f":"'Data In'!F56","v":0},{"$f":"MAX(SensorTable[[#This Row],[S1]:[S4]])","v":0}]
[null,{"$f":"ROW()-ROW(SensorTable[#Headers])","v":50},{"$f":"'Data In'!C57","v":0},{"$f":"'Data In'!D57","v":0},{"$f":"'Data In'!E57","v":0},{"$f":"'Data In'!F57","v":0},{"$f":"MAX(SensorTable[[#This Row],[S1]:[S4]])","v":0}]
[null,{"$f":"ROW()-ROW(SensorTable[#Headers])","v":51},{"$f":"'Data In'!C58","v":0},{"$f":"'Data In'!D58","v":0},{"$f":"'Data In'!E58","v":0},{"$f":"'Data In'!F58","v":0},{"$f":"MAX(SensorTable[[#This Row],[S1]:[S4]])","v":0}]
[null,{"$f":"ROW()-ROW(SensorTable[#Headers])","v":52},{"$f":"'Data In'!C59","v":0},{"$f":"'Data In'!D59","v":0},{"$f":"'Data In'!E59","v":0},{"$f":"'Data In'!F59","v":0},{"$f":"MAX(SensorTable[[#This Row],[S1]:[S4]])","v":0}]
[null,{"$f":"ROW()-ROW(SensorTable[#Headers])","v":53},{"$f":"'Data In'!C60","v":0},{"$f":"'Data In'!D60","v":0},{"$f":"'Data In'!E60","v":0},{"$f":"'Data In'!F60","v":0},{"$f":"MAX(SensorTable[[#This Row],[S1]:[S4]])","v":0}]
[null,{"$f":"ROW()-ROW(SensorTable[#Headers])","v":54},{"$f":"'Data In'!C61","v":0},{"$f":"'Data In'!D61","v":0},{"$f":"'Data In'!E61","v":0},{"$f":"'Data In'!F61","v":0},{"$f":"MAX(SensorTable[[#This Row],[S1]:[S4]])","v":0}]
[null,{"$f":"ROW()-ROW(SensorTable[#Headers])","v":55},{"$f":"'Data In'!C62","v":0},{"$f":"'Data In'!D62","v":0},{"$f":"'Data In'!E62","v":0},{"$f":"'Data In'!F62","v":0},{"$f":"MAX(SensorTable[[#This Row],[S1]:[S4]])","v":0}]
[null,{"$f":"ROW()-ROW(SensorTable[#Headers])","v":56},{"$f":"'Data In'!C63","v":0},{"$f":"'Data In'!D63","v":0},{"$f":"'Data In'!E63","v":0},{"$f":"'Data In'!F63","v":0},{"$f":"MAX(SensorTable[[#This Row],[S1]:[S4]])","v":0}]
[null,{"$f":"ROW()-ROW(SensorTable[#Headers])","v":57},{"$f":"'Data In'!C64","v":0},{"$f":"'Data In'!D64","v":0},{"$f":"'Data In'!E64","v":0},{"$f":"'Data In'!F64","v":0},{"$f":"MAX(SensorTable[[#This Row],[S1]:[S4]])","v":0}]
[null,{"$f":"ROW()-ROW(SensorTable[#Headers])","v":58},{"$f":"'Data In'!C65","v":0},{"$f":"'Data In'!D65","v":0},{"$f":"'Data In'!E65","v":0},{"$f":"'Data In'!F65","v":0},{"$f":"MAX(SensorTable[[#This Row],[S1]:[S4]])","v":0}]
[null,{"$f":"ROW()-ROW(SensorTable[#Headers])","v":59},{"$f":"'Data In'!C66","v":0},{"$f":"'Data In'!D66","v":0},{"$f":"'Data In'!E66","v":0},{"$f":"'Data In'!F66","v":0},{"$f":"MAX(SensorTable[[#This Row],[S1]:[S4]])","v":0}]
[null,{"$f":"ROW()-ROW(SensorTable[#Headers])","v":60},{"$f":"'Data In'!C67","v":0},{"$f":"'Data In'!D67","v":0},{"$f":"'Data In'!E67","v":0},{"$f":"'Data In'!F67","v":0},{"$f":"MAX(SensorTable[[#This Row],[S1]:[S4]])","v":0}]
[null,{"$f":"ROW()-ROW(SensorTable[#Headers])","v":61},{"$f":"'Data In'!C68","v":0},{"$f":"'Data In'!D68","v":0},{"$f":"'Data In'!E68","v":0},{"$f":"'Data In'!F68","v":0},{"$f":"MAX(SensorTable[[#This Row],[S1]:[S4]])","v":0}]
[null,{"$f":"ROW()-ROW(SensorTable[#Headers])","v":62},{"$f":"'Data In'!C69","v":0},{"$f":"'Data In'!D69","v":0},{"$f":"'Data In'!E69","v":0},{"$f":"'Data In'!F69","v":0},{"$f":"MAX(SensorTable[[#This Row],[S1]:[S4]])","v":0}]
[null,{"$f":"ROW()-ROW(SensorTable[#Headers])","v":63},{"$f":"'Data In'!C70","v":0},{"$f":"'Data In'!D70","v":0},{"$f":"'Data In'!E70","v":0},{"$f":"'Data In'!F70","v":0},{"$f":"MAX(SensorTable[[#This Row],[S1]:[S4]])","v":0}]
[null,{"$f":"ROW()-ROW(SensorTable[#Headers])","v":64},{"$f":"'Data In'!C71","v":0},{"$f":"'Data In'!D71","v":0},{"$f":"'Data In'!E71","v":0},{"$f":"'Data In'!F71","v":0},{"$f":"MAX(SensorTable[[#This Row],[S1]:[S4]])","v":0}]
[null,{"$f":"ROW()-ROW(SensorTable[#Headers])","v":65},{"$f":"'Data In'!C72","v":0},{"$f":"'Data In'!D72","v":0},{"$f":"'Data In'!E72","v":0},{"$f":"'Data In'!F72","v":0},{"$f":"MAX(SensorTable[[#This Row],[S1]:[S4]])","v":0}]
[null,{"$f":"ROW()-ROW(SensorTable[#Headers])","v":66},{"$f":"'Data In'!C73","v":0},{"$f":"'Data In'!D73","v":0},{"$f":"'Data In'!E73","v":0},{"$f":"'Data In'!F73","v":0},{"$f":"MAX(SensorTable[[#This Row],[S1]:[S4]])","v":0}]
[null,{"$f":"ROW()-ROW(SensorTable[#Headers])","v":67},{"$f":"'Data In'!C74","v":0},{"$f":"'Data In'!D74","v":0},{"$f":"'Data In'!E74","v":0},{"$f":"'Data In'!F74","v":0},{"$f":"MAX(SensorTable[[#This Row],[S1]:[S4]])","v":0}]
[null,{"$f":"ROW()-ROW(SensorTable[#Headers])","v":68},{"$f":"'Data In'!C75","v":0},{"$f":"'Data In'!D75","v":0},{"$f":"'Data In'!E75","v":0},{"$f":"'Data In'!F75","v":0},{"$f":"MAX(SensorTable[[#This Row],[S1]:[S4]])","v":0}]
[null,{"$f":"ROW()-ROW(SensorTable[#Headers])","v":69},{"$f":"'Data In'!C76","v":0},{"$f":"'Data In'!D76","v":0},{"$f":"'Data In'!E76","v":0},{"$f":"'Data In'!F76","v":0},{"$f":"MAX(SensorTable[[#This Row],[S1]:[S4]])","v":0}]
[null,{"$f":"ROW()-ROW(SensorTable[#Headers])","v":70},{"$f":"'Data In'!C77","v":0},{"$f":"'Data In'!D77","v":0},{"$f":"'Data In'!E77","v":0},{"$f":"'Data In'!F77","v":0},{"$f":"MAX(SensorTable[[#This Row],[S1]:[S4]])","v":0}]
[null,{"$f":"ROW()-ROW(SensorTable[#Headers])","v":71},{"$f":"'Data In'!C78","v":0},{"$f":"'Data In'!D78","v":0},{"$f":"'Data In'!E78","v":0},{"$f":"'Data In'!F78","v":0},{"$f":"MAX(SensorTable[[#This Row],[S1]:[S4]])","v":0}]
[null,{"$f":"ROW()-ROW(SensorTable[#Headers])","v":72},{"$f":"'Data In'!C79","v":0},{"$f":"'Data In'!D79","v":0},{"$f":"'Data In'!E79","v":0},{"$f":"'Data In'!F79","v":0},{"$f":"MAX(SensorTable[[#This Row],[S1]:[S4]])","v":0}]
[null,{"$f":"ROW()-ROW(SensorTable[#Headers])","v":73},{"$f":"'Data In'!C80","v":0},{"$f":"'Data In'!D80","v":0},{"$f":"'Data In'!E80","v":0},{"$f":"'Data In'!F80","v":0},{"$f":"MAX(SensorTable[[#This Row],[S1]:[S4]])","v":0}]
[null,{"$f":"ROW()-ROW(SensorTable[#Headers])","v":74},{"$f":"'Data In'!C81","v":0},{"$f":"'Data In'!D81","v":0},{"$f":"'Data In'!E81","v":0},{"$f":"'Data In'!F81","v":0},{"$f":"MAX(SensorTable[[#This Row],[S1]:[S4]])","v":0}]
[null,{"$f":"ROW()-ROW(SensorTable[#Headers])","v":75},{"$f":"'Data In'!C82","v":0},{"$f":"'Data In'!D82","v":0},{"$f":"'Data In'!E82","v":0},{"$f":"'Data In'!F82","v":0},{"$f":"MAX(SensorTable[[#This Row],[S1]:[S4]])","v":0}]
[null,{"$f":"ROW()-ROW(SensorTable[#Headers])","v":76},{"$f":"'Data In'!C83","v":0},{"$f":"'Data In'!D83","v":0},{"$f":"'Data In'!E83","v":0},{"$f":"'Data In'!F83","v":0},{"$f":"MAX(SensorTable[[#This Row],[S1]:[S4]])","v":0}]
[null,{"$f":"ROW()-ROW(SensorTable[#Headers])","v":77},{"$f":"'Data In'!C84","v":0},{"$f":"'Data In'!D84","v":0},{"$f":"'Data In'!E84","v":0},{"$f":"'Data In'!F84","v":0},{"$f":"MAX(SensorTable[[#This Row],[S1]:[S4]])","v":0}]
[null,{"$f":"ROW()-ROW(SensorTable[#Headers])","v":78},{"$f":"'Data In'!C85","v":0},{"$f":"'Data In'!D85","v":0},{"$f":"'Data In'!E85","v":0},{"$f":"'Data In'!F85","v":0},{"$f":"MAX(SensorTable[[#This Row],[S1]:[S4]])","v":0}]
[null,{"$f":"ROW()-ROW(SensorTable[#Headers])","v":79},{"$f":"'Data In'!C86","v":0},{"$f":"'Data In'!D86","v":0},{"$f":"'Data In'!E86","v":0},{"$f":"'Data In'!F86","v":0},{"$f":"MAX(SensorTable[[#This Row],[S1]:[S4]])","v":0}]
[null,{"$f":"ROW()-ROW(SensorTable[#Headers])","v":80},{"$f":"'Data In'!C87","v":0},{"$f":"'Data In'!D87","v":0},{"$f":"'Data In'!E87","v":0},{"$f":"'Data In'!F87","v":0},{"$f":"MAX(SensorTable[[#This Row],[S1]:[S4]])","v":0}]
[null,{"$f":"ROW()-ROW(SensorTable[#Headers])","v":81},{"$f":"'Data In'!C88","v":0},{"$f":"'Data In'!D88","v":0},{"$f":"'Data In'!E88","v":0},{"$f":"'Data In'!F88","v":0},{"$f":"MAX(SensorTable[[#This Row],[S1]:[S4]])","v":0}]
[null,{"$f":"ROW()-ROW(SensorTable[#Headers])","v":82},{"$f":"'Data In'!C89","v":0},{"$f":"'Data In'!D89","v":0},{"$f":"'Data In'!E89","v":0},{"$f":"'Data In'!F89","v":0},{"$f":"MAX(SensorTable[[#This Row],[S1]:[S4]])","v":0}]
[null,{"$f":"ROW()-ROW(SensorTable[#Headers])","v":83},{"$f":"'Data In'!C90","v":0},{"$f":"'Data In'!D90","v":0},{"$f":"'Data In'!E90","v":0},{"$f":"'Data In'!F90","v":0},{"$f":"MAX(SensorTable[[#This Row],[S1]:[S4]])","v":0}]
[null,{"$f":"ROW()-ROW(SensorTable[#Headers])","v":84},{"$f":"'Data In'!C91","v":0},{"$f":"'Data In'!D91","v":0},{"$f":"'Data In'!E91","v":0},{"$f":"'Data In'!F91","v":0},{"$f":"MAX(SensorTable[[#This Row],[S1]:[S4]])","v":0}]
[null,{"$f":"ROW()-ROW(SensorTable[#Headers])","v":85},{"$f":"'Data In'!C92","v":0},{"$f":"'Data In'!D92","v":0},{"$f":"'Data In'!E92","v":0},{"$f":"'Data In'!F92","v":0},{"$f":"MAX(SensorTable[[#This Row],[S1]:[S4]])","v":0}]
[null,{"$f":"ROW()-ROW(SensorTable[#Headers])","v":86},{"$f":"'Data In'!C93","v":0},{"$f":"'Data In'!D93","v":0},{"$f":"'Data In'!E93","v":0},{"$f":"'Data In'!F93","v":0},{"$f":"MAX(SensorTable[[#This Row],[S1]:[S4]])","v":0}]
[null,{"$f":"ROW()-ROW(SensorTable[#Headers])","v":87},{"$f":"'Data In'!C94","v":0},{"$f":"'Data In'!D94","v":0},{"$f":"'Data In'!E94","v":0},{"$f":"'Data In'!F94","v":0},{"$f":"MAX(SensorTable[[#This Row],[S1]:[S4]])","v":0}]
[null,{"$f":"ROW()-ROW(SensorTable[#Headers])","v":88},{"$f":"'Data In'!C95","v":0},{"$f":"'Data In'!D95","v":0},{"$f":"'Data In'!E95","v":0},{"$f":"'Data In'!F95","v":0},{"$f":"MAX(SensorTable[[#This Row],[S1]:[S4]])","v":0}]
[null,{"$f":"ROW()-ROW(SensorTable[#Headers])","v":89},{"$f":"'Data In'!C96","v":0},{"$f":"'Data In'!D96","v":0},{"$f":"'Data In'!E96","v":0},{"$f":"'Data In'!F96","v":0},{"$f":"MAX(SensorTable[[#This Row],[S1]:[S4]])","v":0}]
[null,{"$f":"ROW()-ROW(SensorTable[#Headers])","v":90},{"$f":"'Data In'!C97","v":0},{"$f":"'Data In'!D97","v":0},{"$f":"'Data In'!E97","v":0},{"$f":"'Data In'!F97","v":0},{"$f":"MAX(SensorTable[[#This Row],[S1]:[S4]])","v":0}]
[null,{"$f":"ROW()-ROW(SensorTable[#Headers])","v":91},{"$f":"'Data In'!C98","v":0},{"$f":"'Data In'!D98","v":0},{"$f":"'Data In'!E98","v":0},{"$f":"'Data In'!F98","v":0},{"$f":"MAX(SensorTable[[#This Row],[S1]:[S4]])","v":0}]
[null,{"$f":"ROW()-ROW(SensorTable[#Headers])","v":92},{"$f":"'Data In'!C99","v":0},{"$f":"'Data In'!D99","v":0},{"$f":"'Data In'!E99","v":0},{"$f":"'Data In'!F99","v":0},{"$f":"MAX(SensorTable[[#This Row],[S1]:[S4]])","v":0}]
[null,{"$f":"ROW()-ROW(SensorTable[#Headers])","v":93},{"$f":"'Data In'!C100","v":0},{"$f":"'Data In'!D100","v":0},{"$f":"'Data In'!E100","v":0},{"$f":"'Data In'!F100","v":0},{"$f":"MAX(SensorTable[[#This Row],[S1]:[S4]])","v":0}]
[null,{"$f":"ROW()-ROW(SensorTable[#Headers])","v":94},{"$f":"'Data In'!C101","v":0},{"$f":"'Data In'!D101","v":0},{"$f":"'Data In'!E101","v":0},{"$f":"'Data In'!F101","v":0},{"$f":"MAX(SensorTable[[#This Row],[S1]:[S4]])","v":0}]
[null,{"$f":"ROW()-ROW(SensorTable[#Headers])","v":95},{"$f":"'Data In'!C102","v":0},{"$f":"'Data In'!D102","v":0},{"$f":"'Data In'!E102","v":0},{"$f":"'Data In'!F102","v":0},{"$f":"MAX(SensorTable[[#This Row],[S1]:[S4]])","v":0}]
[null,{"$f":"ROW()-ROW(SensorTable[#Headers])","v":96},{"$f":"'Data In'!C103","v":0},{"$f":"'Data In'!D103","v":0},{"$f":"'Data In'!E103","v":0},{"$f":"'Data In'!F103","v":0},{"$f":"MAX(SensorTable[[#This Row],[S1]:[S4]])","v":0}]
[null,{"$f":"ROW()-ROW(SensorTable[#Headers])","v":97},{"$f":"'Data In'!C104","v":0},{"$f":"'Data In'!D104","v":0},{"$f":"'Data In'!E104","v":0},{"$f":"'Data In'!F104","v":0},{"$f":"MAX(SensorTable[[#This Row],[S1]:[S4]])","v":0}]
[null,{"$f":"ROW()-ROW(SensorTable[#Headers])","v":98},{"$f":"'Data In'!C105","v":0},{"$f":"'Data In'!D105","v":0},{"$f":"'Data In'!E105","v":0},{"$f":"'Data In'!F105","v":0},{"$f":"MAX(SensorTable[[#This Row],[S1]:[S4]])","v":0}]
[null,{"$f":"ROW()-ROW(SensorTable[#Headers])","v":99},{"$f":"'Data In'!C106","v":0},{"$f":"'Data In'!D106","v":0},{"$f":"'Data In'!E106","v":0},{"$f":"'Data In'!F106","v":0},{"$f":"MAX(SensorTable[[#This Row],[S1]:[S4]])","v":0}]
[null,{"$f":"ROW()-ROW(SensorTable[#Headers])","v":100},{"$f":"'Data In'!C107","v":0},{"$f":"'Data In'!D107","v":0},{"$f":"'Data In'!E107","v":0},{"$f":"'Data In'!F107","v":0},{"$f":"MAX(SensorTable[[#This Row],[S1]:[S4]])","v":0}]

{"sheet":"Introduction","index":2,"n_rows":32,"n_cols":13,"rows_kept":32,"cut":false,"hidden":false,"merged":[[3,11,3,14],[31,12,31,17],[13,2,13,11],[8,2,11,17],[17,2,23,11],[27,2,27,4],[26,8,28,17],[4,11,4,14]]}
["v. 210713"]
[{"$f":"RIGHT(CELL(\"filename\",A2),LEN(CELL(\"filename\",A2))-FIND(\"]\",CELL(\"filename\",A2)))","v":"Introduction"}]
[]
[null,null,null,null,null,null,null,null,null,null,null,{"$f":"TT!$O$17","v":"Select Language "}]
[null,null,null,null,null,null,null,null,null,null,null,"English"]
[]
[]
[]
[null,null,{"$f":"TT!$O$24&\"\n\"&TT!$O$25","v":"Designing Astro Socks to protect\nastronauts' feet in microgravity"}]
[]
[]
[]
[]
[null,null,{"$f":"TT!$O$27","v":"In partnership with NASA"}]
[]
[]
[]
[null,null,{"$f":"TT!$O$26","v":"In this lesson students study the tasks that astronauts perform while on the International Space Station. They design and build a prototype to mitigate the pressure on their feet. The data visualizations in this workbook support students in running trials using their sensorized sock which they use to test the effectiveness of their design in a simulated microgravity environment."}]
[]
[]
[]
[]
[]
[]
[]
[]
[null,null,null,null,null,null,null,null,{"$f":"TT!$O$28","v":"NASA content is used with NASA's approval, and in accordance with the applicable NASA guidelines, solely for use in Microsoft educational materials. Any downloading, copying and/or reuse of such content is governed by NASA Media Usage Guidelines, NASA Advertising Guidelines, Merchandising Guidelines, and by applicable law."}]
[null,null,{"$f":"TT!$O$22","v":"Next "}]
[]
[]
[]
[null,null,null,null,null,null,null,null,null,null,null,"Source","https://www.nasa.gov/multimedia/imagegallery/iotd.html"]

{"sheet":"TT","index":3,"n_rows":58,"n_cols":20,"rows_kept":58,"cut":false,"hidden":true,"merged":[]}
[]
[null,"Row","Tab","Location","Language 1","Language 2","Language 3","Language 4","Language 5","Language 6","Language 7","Language 8","Language 9","Language 10","Display"]
[null,{"$f":"ROW()-ROW(TT[#Headers])","v":1},"Data In","Data In1","Data In (From Source)","Entrada de dados (Da Fonte)","Datos entrantes (desde la fuente)","Dateneingang (von der Quelle)","Données entrantes (de la source)","入力データ（ソースから）",null,null,null,null,{"$f":"_xlfn.SINGLE(INDEX(TT[[#This Row],[Language 1]:[Language 10]],1,LanguageSelect))","v":"Data In (From Source)"},null,null,"Select Language",{"$f":"Introduction!$L$5","v":"English"},{"$f":"INDEX($R$5:$R$14,MATCH($S$3,$S$5:$S$14,0))","v":1}]
[null,{"$f":"ROW()-ROW(TT[#Headers])","v":2},"Data In","Data In2","Data coming from the current data source will appear below as it is received.","Os dados que vêm da fonte de dados atual aparecerão abaixo à medida que eles são recebidos.","Los datos procedentes de la fuente de datos actual aparecerán a continuación a medida que se reciben.","Daten aus der aktuellen Datenquelle werden unten angezeigt, sobald sie empfangen werden.","Les données provenant de la source de données actuelle apparaîtront ci-dessous dès leur réception.","その時点のデータソースからのデータが受信されると、以下のように表示されます。",null,null,null,null,{"$f":"_xlfn.SINGLE(INDEX(TT[[#This Row],[Language 1]:[Language 10]],1,LanguageSelect))","v":"Data coming from the current data source will appear below as it is received."}]
[null,{"$f":"ROW()-ROW(TT[#Headers])","v":3},"Data In","Data In3","Current Data","Dados Atuais","Datos actuales","Aktuelle Daten","Données actuelles","現在のデータ",null,null,null,null,{"$f":"_xlfn.SINGLE(INDEX(TT[[#This Row],[Language 1]:[Language 10]],1,LanguageSelect))","v":"Current Data"},null,null,1,"English"]
[null,{"$f":"ROW()-ROW(TT[#Headers])","v":4},"Data In","Data In4","Time","Tempo","Tiempo","Zeit","Temps","時間",null,null,null,null,{"$f":"_xlfn.SINGLE(INDEX(TT[[#This Row],[Language 1]:[Language 10]],1,LanguageSelect))","v":"Time"},null,null,2,"Português"]
[null,{"$f":"ROW()-ROW(TT[#Headers])","v":5},"Data In","Data In5","Historical Data","Dados de Histórico","Datos históricos","Historische Daten","Données historiques","過去のデータ",null,null,null,null,{"$f":"_xlfn.SINGLE(INDEX(TT[[#This Row],[Language 1]:[Language 10]],1,LanguageSelect))","v":"Historical Data"},null,null,3,"Español"]
[null,{"$f":"ROW()-ROW(TT[#Headers])","v":6},"Data Out","Data Out6","Data Out (To Device)","Saída de Dados (Para o Dispositivo)","Salida de datos (hacia el dispositivo)","Datenausgang (zum Gerät)","Données sortantes (à partir du dispositif)","出力データ（デバイスへ）",null,null,null,null,{"$f":"_xlfn.SINGLE(INDEX(TT[[#This Row],[Language 1]:[Language 10]],1,LanguageSelect))","v":"Data Out (To Device)"},null,null,4,"Deutsch"]
[null,{"$f":"ROW()-ROW(TT[#Headers])","v":7},"Data Out","Data Out7","Data entered into the channels below will be sent to the currently connected device as a comma-delimited string.","Os dados inseridos nos canais abaixo serão enviados para o dispositivo atualmente conectado como uma string delimitada por vírgula.","Los datos introducidos en los canales siguientes se enviarán al dispositivo actualmente conectado como una cadena delimitada por comas.","Die in die folgenden Kanäle eingegebenen Daten werden als kommagetrennte Zeichenkette an das aktuell angeschlossene Gerät gesendet.","Les données saisies dans les canaux ci-dessous seront envoyées au dispositif actuellement connecté sous forme de chaîne délimitée par des virgules.","以下のチャンネルに入力されたデータは、その時点で接続されているデバイスにカンマ区切りの文字列として送信されます。",null,null,null,null,{"$f":"_xlfn.SINGLE(INDEX(TT[[#This Row],[Language 1]:[Language 10]],1,LanguageSelect))","v":"Data entered into the channels below will be sent to the currently connected device as a comma-delimited string."},null,null,5,"Français"]
[null,{"$f":"ROW()-ROW(TT[#Headers])","v":8},"Settings","Settings8","Workbook Settings","Configurações da Pasta de Trabalho","Configuración del libro de trabajo","Arbeitsmappen-Einstellungen","Paramètres du classeur","ワークブックの設定",null,null,null,null,{"$f":"_xlfn.SINGLE(INDEX(TT[[#This Row],[Language 1]:[Language 10]],1,LanguageSelect))","v":"Workbook Settings"},null,null,6,"日本語"]
[null,{"$f":"ROW()-ROW(TT[#Headers])","v":9},"Settings","Settings9","Settings below will affect how data is read into the current workbook from data sources. Clear a field's contents to revert to its default setting.","As configurações abaixo irão afetar como os dados são lidos na pasta de trabalho atual a partir das fontes de dados. Limpe o conteúdo de um campo para voltar à sua configuração padrão.","Los ajustes que se indican a continuación afectarán a la forma en que los datos se leen en el libro de trabajo actual a partir de fuentes de datos. Borra el contenido de un campo para volver a su configuración predeterminada.","Die folgenden Einstellungen beeinflussen, wie Daten aus Datenquellen in die aktuelle Arbeitsmappe eingelesen werden. Lösche den Inhalt eines Feldes, um zur Standardeinstellung zurückzukehren.","Les paramètres ci-dessous affectent la manière dont les données sont lues dans le classeur actuel à partir des sources de données. Effacer le contenu d'un champ pour revenir à ses paramètres par défaut.","以下の設定内容によって、データ ソースから現在のワークブックにデータを読み込む方法が変わります。初期設定に戻すには、フィールドの内容をクリアしてください。",null,null,null,null,{"$f":"_xlfn.SINGLE(INDEX(TT[[#This Row],[Language 1]:[Language 10]],1,LanguageSelect))","v":"Settings below will affect how data is read into the current workbook from data sources. Clear a field's contents to revert to its default setting."},null,null,7]
[null,{"$f":"ROW()-ROW(TT[#Headers])","v":10},"Settings","Settings10","Data interval (ms):","Intervalo de dados (ms):  ","Intervalo de datos (ms):  ","Datenintervall (ms):  ","Intervalle de données (ms):","データ間隔（ミリ秒）:",null,null,null,null,{"$f":"_xlfn.SINGLE(INDEX(TT[[#This Row],[Language 1]:[Language 10]],1,LanguageSelect))","v":"Data interval (ms):"},null,null,8]
[null,{"$f":"ROW()-ROW(TT[#Headers])","v":11},"Settings","Settings11","Data rows:","Linhas de dados:  ","Líneas de datos:  ","Datenzeilen:","Lignes de données :","データ列:",null,null,null,null,{"$f":"_xlfn.SINGLE(INDEX(TT[[#This Row],[Language 1]:[Language 10]],1,LanguageSelect))","v":"Data rows:"},null,null,9]
[null,{"$f":"ROW()-ROW(TT[#Headers])","v":12},"Settings","Settings12","Data channels:","Canais de dados:  ","Canales de datos:  ","Datenkanäle:  ","Canaux de données :","データチャネル:",null,null,null,null,{"$f":"_xlfn.SINGLE(INDEX(TT[[#This Row],[Language 1]:[Language 10]],1,LanguageSelect))","v":"Data channels:"},null,null,10]
[null,{"$f":"ROW()-ROW(TT[#Headers])","v":13},"Settings","Settings13","Data orientation:","Orientação de dados:  ","Orientación de datos:  ","Datenorientierung:  ","Orientation des données:","データの向き:",null,null,null,null,{"$f":"_xlfn.SINGLE(INDEX(TT[[#This Row],[Language 1]:[Language 10]],1,LanguageSelect))","v":"Data orientation:"}]
[null,{"$f":"ROW()-ROW(TT[#Headers])","v":14},"Settings","Settings14","WARNING: Changing settings may result in the loss of content and/or custom formatting in the Data In and Data Out worksheets. Always save before changing values.","AVISO: A alteração das configurações pode resultar na perda de conteúdo e/ou formatação personalizada nas planilhas Entrada de Dados e Saída de Dados. Sempre salve antes de alterar os valores.","ADVERTENCIA: Cambiar la configuración puede resultar en la pérdida de contenido y/o formato personalizado en las hojas de trabajo de entrada y salida de datos. Guarda siempre antes de cambiar los valores.","WARNUNG: Das Ändern von Einstellungen kann zum Verlust von Inhalten und/oder zur benutzerdefinierten Formatierung in den Arbeitsblättern Dateneingang und Datenausgang führen. Speichere immer, bevor du Werte änderst.","AVERTISSEMENT : toute modification des paramètres peut entraîner une perte de contenu et / ou un formatage personnalisé dans les feuilles de calcul des Données entrantes et Données sortantes. Toujours sauvegarder avant de changer les valeurs.","注意事項: 設定を変更すると、データ インとデータ アウトのワークシートの内容やカスタム フォーマットが失われることがあります。値を変更する前に必ず保存してください。",null,null,null,null,{"$f":"_xlfn.SINGLE(INDEX(TT[[#This Row],[Language 1]:[Language 10]],1,LanguageSelect))","v":"WARNING: Changing settings may result in the loss of content and/or custom formatting in the Data In and Data Out worksheets. Always save before changing values."}]
[null,{"$f":"ROW()-ROW(TT[#Headers])","v":15},"Instructions","Instructions15","Select Language ","Selecionar idioma ","Selecciona el idioma ","Sprache auswählen ","Choisir la langue ","言語を選択してください ",null,null,null,null,{"$f":"_xlfn.SINGLE(INDEX(TT[[#This Row],[Language 1]:[Language 10]],1,LanguageSelect))","v":"Select Language "}]
[null,{"$f":"ROW()-ROW(TT[#Headers])","v":16},"Instructions","Instructions16","This workbook uses \"Macros\" (automated Excel commands) to assist in the data collection process.","Esta pasta de trabalho usa \"Macros\" (comandos automatizados do Excel) para auxiliar no processo de coleta de dados","Este libro de trabajo utiliza \"Macros\" (comandos automatizados de Excel) para ayudar en el proceso de recopilación de datos.","Diese Arbeitsmappe verwendet \"Makros\" (automatisierte Excel-Befehle), um den Datenerfassungsprozess zu unterstützen.","Ce classeur utilise des « Macros » (commandes Excel automatisées) pour faciliter le processus de collecte de données.","データを収集しやすくするために、このワークブックでは「マクロ」（自動化されたエクセルコマンド）を使用しています。",null,null,null,null,{"$f":"_xlfn.SINGLE(INDEX(TT[[#This Row],[Language 1]:[Language 10]],1,LanguageSelect))","v":"This workbook uses \"Macros\" (automated Excel commands) to assist in the data collection process."}]
[null,{"$f":"ROW()-ROW(TT[#Headers])","v":17},"Instructions","Instructions17","To use these Macros and have buttons on the spreadsheets work, you must \"Enable\" the Macros.","Para usar essas Macros e ter botões nas planilhas funcionando, você deve \"Habilitar\" as Macros","Para utilizar estas macros y tener botones en las hojas de cálculo, debes \"Habilitar\" las macros.","Um diese Makros zu verwenden und Schaltflächen auf den Tabellenkalkulationen zu haben, musst du die Makros \"aktivieren\".","Pour utiliser ces Macros et utiliser des boutons sur les feuilles de calcul, vous devez « activer » les Macros.","これらのマクロを使用し、Excelシート上のボタンを動作させるには、マクロを「有効」にする必要があります。",null,null,null,null,{"$f":"_xlfn.SINGLE(INDEX(TT[[#This Row],[Language 1]:[Language 10]],1,LanguageSelect))","v":"To use these Macros and have buttons on the spreadsheets work, you must \"Enable\" the Macros."}]
[null,{"$f":"ROW()-ROW(TT[#Headers])","v":18},"Instructions","Instructions18","Click the \"Enable Content\" button that appears above when you first open this workbook.","Clique no botão \"Habilitar Conteúdo\" exibido acima quando você abrir a pasta de trabalho pela primeira vez","Haz clic en el botón \"Habilitar contenido\" que aparece arriba cuando abras por primera vez este libro de trabajo.","Klicke auf die Schaltfläche \"Inhalt aktivieren\", die oben erscheint, wenn du diese Arbeitsmappe zum ersten Mal öffnest.","Cliquez sur le bouton « Activer le contenu » qui apparaît ci-dessus lorsque vous ouvrez ce classeur pour la première fois.","このワークブックを最初に開いたときに上に表示される「コンテンツを有効にする」ボタンをクリックしてください。",null,null,null,null,{"$f":"_xlfn.SINGLE(INDEX(TT[[#This Row],[Language 1]:[Language 10]],1,LanguageSelect))","v":"Click the \"Enable Content\" button that appears above when you first open this workbook."}]
[null,{"$f":"ROW()-ROW(TT[#Headers])","v":19},"Instructions","Instructions19","Once you have enabled macros, you can use the workbook.  If you do not see this message, macros are enabled.","Depois de habilitar as macros, você poderá usar a pasta de trabalho.  Se você não vir essa mensagem, as macros serão habilitadas","Una vez que hayas activado las macros, podrás utilizar el libro de trabajo.  Si no ves este mensaje, las macros están habilitadas","Sobald du Makros aktiviert hast, kannst du die Arbeitsmappe verwenden.  Wenn du diese Meldung nicht siehst, sind die Makros aktiviert.","Une fois que vous avez activé les Macros, vous pouvez utiliser le classeur. Si vous ne voyez pas ce message, les Macros sont activées.","マクロを有効にすると、ワークブックを使用できるようになります。 このメッセージが表示されない場合は、マクロが有効になっています。",null,null,null,null,{"$f":"_xlfn.SINGLE(INDEX(TT[[#This Row],[Language 1]:[Language 10]],1,LanguageSelect))","v":"Once you have enabled macros, you can use the workbook.  If you do not see this message, macros are enabled."}]
[null,{"$f":"ROW()-ROW(TT[#Headers])","v":20},"Nav","Nav20","Next ","Próximo ","Siguiente ","Weiter ","Suivant ","次 ",null,null,null,null,{"$f":"_xlfn.SINGLE(INDEX(TT[[#This Row],[Language 1]:[Language 10]],1,LanguageSelect))","v":"Next "}]
[null,{"$f":"ROW()-ROW(TT[#Headers])","v":21},"Nav","Nav21"," Previous"," Anterior"," Anterior"," Vorherige"," Précédent"," 前",null,null,null,null,{"$f":"_xlfn.SINGLE(INDEX(TT[[#This Row],[Language 1]:[Language 10]],1,LanguageSelect))","v":" Previous"}]
[null,{"$f":"ROW()-ROW(TT[#Headers])","v":22},null,null,"Designing Astro Socks to protect","Projetando Meias Espaciais para proteger","Diseñando Astro Calcetines para proteger","Entwicklung von Astro-Socken zum Schutz der ","Concevoir des chaussettes astronomiques pour protéger","宇宙飛行士の足を",null,null,null,null,{"$f":"_xlfn.SINGLE(INDEX(TT[[#This Row],[Language 1]:[Language 10]],1,LanguageSelect))","v":"Designing Astro Socks to protect"}]
[null,{"$f":"ROW()-ROW(TT[#Headers])","v":23},null,null,"astronauts' feet in microgravity","os pés dos astronautas na microgravidade","los pies de los astronautas en microgravedad","Füße von Astronauten in der Mikrogravitation","les pieds des astronautes en microgravité","保護する靴をデザインする",null,null,null,null,{"$f":"_xlfn.SINGLE(INDEX(TT[[#This Row],[Language 1]:[Language 10]],1,LanguageSelect))","v":"astronauts' feet in microgravity"}]
[null,{"$f":"ROW()-ROW(TT[#Headers])","v":24},null,null,"In this lesson students study the tasks that astronauts perform while on the International Space Station. They design and build a prototype to mitigate the pressure on their feet. The data visualizations in this workbook support students in running trials using their sensorized sock which they use to test the effectiveness of their design in a simulated microgravity environment.","Nesta lição, os alunos estudam as tarefas que os astronautas realizam na Estação Espacial Internacional. Logo após, eles projetam e constroem um protótipo para mitigar a pressão nos pés. As visualizações de dados nesta pasta de trabalho apoiam os alunos na execução de testes usando sua meia sensorizada, que eles usam para testar a eficácia de seu design em um ambiente de microgravidade simulada.","En esta lección, los estudiantes estudian las tareas que realizan los astronautas mientras están en la Estación Espacial Internacional. Diseñan y construyen un prototipo para mitigar la presión sobre sus pies. Las visualizaciones de datos en este libro de trabajo ayudan a los estudiantes a realizar pruebas utilizando su calcetín sensorizado que utilizan para probar la efectividad de su diseño en un entorno de microgravedad simulado.","In dieser Lektion lernen die Schüler die Aufgaben, die Astronauten auf der Internationalen Raumstation ausführen. Sie entwerfen und bauen einen Prototyp, um den Druck auf ihre Füße zu verringern. Die Datenvisualisierungen in dieser Arbeitsmappe unterstützen die Schüler bei der Durchführung von Versuchen mit ihrer sensorisierten Socke, mit der sie die Wirksamkeit ihres Designs in einer simulierten Mikrogravitationsumgebung testen.","Dans cette leçon, les élèves étudient les tâches que les astronautes effectuent à bord de la Station spatiale internationale. Ils conçoivent et construisent un prototype pour atténuer la pression sur leurs pieds. La visualisation de données grâce à ce classeur permet aux élèves d’exécuter des essais sur leur chaussette dotée de capteurs qu’ils utilisent pour tester l’efficacité de leur conception dans un environnement de microgravité simulée. ","生徒の皆さんはこのレッスンで宇宙飛行士が国際宇宙ステーションに滞在中に行う作業について学習をして、足への圧力を軽減するためのプロトタイプを設計し、作成してもらいます。このワークブックではデータをビジュアル化することによって、微小重力をシミュレーションした環境で自分たちが設計したセンサー付き靴下を使用し、有効性を試すことができます。",null,null,null,null,{"$f":"_xlfn.SINGLE(INDEX(TT[[#This Row],[Language 1]:[Language 10]],1,LanguageSelect))","v":"In this lesson students study the tasks that astronauts perform while on the International Space Station. They design and build a prototype to mitigate the pressure on their feet. The data visualizations in this workbook support students in running trials using their sensorized sock which they use to test the effectiveness of their design in a simulated microgravity environment."}]
[null,{"$f":"ROW()-ROW(TT[#Headers])","v":25},null,null,"In partnership with NASA","Em parceria com a NASA","En colaboración con la NASA","In Zusammenarbeit mit der NASA","En partenariat avec la NASA","協力: NASA",null,null,null,null,{"$f":"_xlfn.SINGLE(INDEX(TT[[#This Row],[Language 1]:[Language 10]],1,LanguageSelect))","v":"In partnership with NASA"}]
[null,{"$f":"ROW()-ROW(TT[#Headers])","v":26},null,null,"NASA content is used with NASA's approval, and in accordance with the applicable NASA guidelines, solely for use in Microsoft educational materials. Any downloading, copying and/or reuse of such content is governed by NASA Media Usage Guidelines, NASA Advertising Guidelines, Merchandising Guidelines, and by applicable law.","O conteúdo da NASA pode ser usado apenas com a aprovação da NASA e de acordo com as diretrizes aplicáveis da NASA, exclusivamente para uso em materiais educacionais da Microsoft. Qualquer download, cópia e/ou reutilização do conteúdo é regido pelas Diretrizes de Utilização de Mídia da NASA, Diretrizes de Publicidade da NASA, Diretrizes de Merchandising e pelas leis aplicáveis.","El contenido de la NASA se utiliza con la aprobación de la NASA, y de acuerdo con las pautas aplicables de la NASA, exclusivamente para su uso en materiales educativos de Microsoft. Cualquier descarga, copia y/o reutilización de dicho contenido se rige por las Pautas de Uso de los Medios de la NASA, las Pautas de Publicidad de la NASA, las Pautas de Comercialización y la ley aplicable.","NASA-Inhalte werden mit Zustimmung der NASA und in Übereinstimmung mit den geltenden NASA-Richtlinien ausschließlich für die Verwendung in Microsoft-Schulungsunterlagen verwendet. Jegliches Herunterladen, Kopieren und/oder Wiederverwenden solcher Inhalte unterliegt den NASA Media Usage Guidelines, NASA Advertising Guidelines, Merchandising Guidelines und dem geltenden Recht.","Le contenu de la NASA est utilisé avec l'approbation de la NASA et conformément aux directives applicables de la NASA et est uniquement destiné à être utilisé dans le matériel pédagogique de Microsoft. Tout téléchargement, copie et / ou réutilisation de ce contenu est régi par les directives d’utilisation des média de la NASA, les directives de publicité de la NASA, les directives en matière de commercialisation et les lois applicables.","NASA のコンテンツはNASA の承認を得ておりNASA のガイドラインに沿って、マイクロソフトの教育用教材としてのみ使用しています。このようなコンテンツのダウンロード、コピー、再利用は、NASA メディア利用ガイドライン、NASA 広告ガイドライン、商品化ガイドライン、および適用される法律に準拠しています。",null,null,null,null,{"$f":"_xlfn.SINGLE(INDEX(TT[[#This Row],[Language 1]:[Language 10]],1,LanguageSelect))","v":"NASA content is used with NASA's approval, and in accordance with the applicable NASA guidelines, solely for use in Microsoft educational materials. Any downloading, copying and/or reuse of such content is governed by NASA Media Usage Guidelines, NASA Advertising Guidelines, Merchandising Guidelines, and by applicable law."}]
[null,{"$f":"ROW()-ROW(TT[#Headers])","v":27},null,null,"Test Sensors","Sensores de teste","Sensores de prueba","Testsensoren","Capteurs de test","テストセンサー",null,null,null,null,{"$f":"_xlfn.SINGLE(INDEX(TT[[#This Row],[Language 1]:[Language 10]],1,LanguageSelect))","v":"Test Sensors"}]
[null,{"$f":"ROW()-ROW(TT[#Headers])","v":28},null,null,"Phalanges Sensor","Sensor de Falanges","Sensor de falanges","Zehengelenk Sensor","Capteur des phalanges","指骨のセンサー",null,null,null,null,{"$f":"_xlfn.SINGLE(INDEX(TT[[#This Row],[Language 1]:[Language 10]],1,LanguageSelect))","v":"Phalanges Sensor"}]
[null,{"$f":"ROW()-ROW(TT[#Headers])","v":29},null,null,"Metatarsals Sensor","Sensor de Metatarsos","Sensor de metatarsos","Mittelfußknochen Sensor","Capteur de métatarses","中足骨のセンサー",null,null,null,null,{"$f":"_xlfn.SINGLE(INDEX(TT[[#This Row],[Language 1]:[Language 10]],1,LanguageSelect))","v":"Metatarsals Sensor"}]
[null,{"$f":"ROW()-ROW(TT[#Headers])","v":30},null,null,"Tarsals Sensor","Sensor de Tarsos","Sensor de tarsos","Keilbeine Sensor","Capteur des tarses","足根骨のセンサー",null,null,null,null,{"$f":"_xlfn.SINGLE(INDEX(TT[[#This Row],[Language 1]:[Language 10]],1,LanguageSelect))","v":"Tarsals Sensor"}]
[null,{"$f":"ROW()-ROW(TT[#Headers])","v":31},null,null,"Ankle Sensor","Sensor de Tornozelo","Sensor de tobillo","Sprunggelenk Sensor","Capteur de cheville","足首のセンサー",null,null,null,null,{"$f":"_xlfn.SINGLE(INDEX(TT[[#This Row],[Language 1]:[Language 10]],1,LanguageSelect))","v":"Ankle Sensor"}]
[null,{"$f":"ROW()-ROW(TT[#Headers])","v":32},null,null,"Saved trials","Testes salvos","Pruebas guardadas","Gespeicherte Versuche","Essais sauvés","保存済みのトライアル",null,null,null,null,{"$f":"_xlfn.SINGLE(INDEX(TT[[#This Row],[Language 1]:[Language 10]],1,LanguageSelect))","v":"Saved trials"}]
[null,{"$f":"ROW()-ROW(TT[#Headers])","v":33},null,null,"Use the tabs below to switch between your mitigation designs. Use the colored buttons to start the trial and then save each trial per mitigation design. ","Use as guias abaixo para alternar entre seus designs de mitigação. Use os botões coloridos para iniciar o teste e, em seguida, salve cada teste por design de mitigação. ","Utiliza las pestañas de abajo para cambiar entre tus diseños de mitigación. Utiliza los botones de colores para iniciar la prueba y luego guarda cada prueba según el diseño de mitigación. ","Verwende die folgenden Tabs, um zwischen deinen Druckminderungs-Konzepten zu wechseln. Verwende die farbigen Schaltflächen, um die Messung zu starten und speichere dann jede Messung pro Druckminderungs-Konzept.","Utilisez les onglets ci-dessous pour basculer entre vos conceptions d’atténuation. Utilisez les boutons colorés pour démarrer l’essai, puis enregistrez chaque essai par conception d’atténuation.","下のタブを使用して、ミティゲーション設計を切り替えます。色の付いたボタンでトライアルを開始し、ミティゲーション設計ごとにトライアルを保存します。",null,null,null,null,{"$f":"_xlfn.SINGLE(INDEX(TT[[#This Row],[Language 1]:[Language 10]],1,LanguageSelect))","v":"Use the tabs below to switch between your mitigation designs. Use the colored buttons to start the trial and then save each trial per mitigation design. "}]
[null,{"$f":"ROW()-ROW(TT[#Headers])","v":34},null,null,"Foot pressure level","Nível de pressão do pé","Nivel de presión de los pies","Level Druck auf den Fuß","Niveau de pression sur le pied","足にかかる圧力のレベル",null,null,null,null,{"$f":"_xlfn.SINGLE(INDEX(TT[[#This Row],[Language 1]:[Language 10]],1,LanguageSelect))","v":"Foot pressure level"}]
[null,{"$f":"ROW()-ROW(TT[#Headers])","v":35},null,null,"None","Nenhuma","Ninguno","Keiner","Aucun","なし",null,null,null,null,{"$f":"_xlfn.SINGLE(INDEX(TT[[#This Row],[Language 1]:[Language 10]],1,LanguageSelect))","v":"None"}]
[null,{"$f":"ROW()-ROW(TT[#Headers])","v":36},null,null,"Low","Baixa","Bajo","Niedrig","Faible","低",null,null,null,null,{"$f":"_xlfn.SINGLE(INDEX(TT[[#This Row],[Language 1]:[Language 10]],1,LanguageSelect))","v":"Low"}]
[null,{"$f":"ROW()-ROW(TT[#Headers])","v":37},null,null,"Medium","Média","Medio","Mittel","Moyen","中",null,null,null,null,{"$f":"_xlfn.SINGLE(INDEX(TT[[#This Row],[Language 1]:[Language 10]],1,LanguageSelect))","v":"Medium"}]
[null,{"$f":"ROW()-ROW(TT[#Headers])","v":38},null,null,"High","Alto","Alto","Hoch","Élevé","高",null,null,null,null,{"$f":"_xlfn.SINGLE(INDEX(TT[[#This Row],[Language 1]:[Language 10]],1,LanguageSelect))","v":"High"}]
[null,{"$f":"ROW()-ROW(TT[#Headers])","v":39},null,null,"Phalanges","Falanges","Falanges","Zehengelenke","Phalanges","指骨",null,null,null,null,{"$f":"_xlfn.SINGLE(INDEX(TT[[#This Row],[Language 1]:[Language 10]],1,LanguageSelect))","v":"Phalanges"}]
[null,{"$f":"ROW()-ROW(TT[#Headers])","v":40},null,null,"Metatarsals","Metatarsos","Metatarsos","Mittelfußknochen","Métatarses","中足骨",null,null,null,null,{"$f":"_xlfn.SINGLE(INDEX(TT[[#This Row],[Language 1]:[Language 10]],1,LanguageSelect))","v":"Metatarsals"}]
[null,{"$f":"ROW()-ROW(TT[#Headers])","v":41},null,null,"Tarsals","Tarsos","Tarsos","Keilbeine","Tarses","足根",null,null,null,null,{"$f":"_xlfn.SINGLE(INDEX(TT[[#This Row],[Language 1]:[Language 10]],1,LanguageSelect))","v":"Tarsals"}]
[null,{"$f":"ROW()-ROW(TT[#Headers])","v":42},null,null,"Ankle","Tornozelo","Tobillo","Sprunggelenk","Cheville","足首",null,null,null,null,{"$f":"_xlfn.SINGLE(INDEX(TT[[#This Row],[Language 1]:[Language 10]],1,LanguageSelect))","v":"Ankle"}]
[null,{"$f":"ROW()-ROW(TT[#Headers])","v":43},null,null,"Baseline","Linha de base","Base","Basislinie","Point de référence","ベースライン",null,null,null,null,{"$f":"_xlfn.SINGLE(INDEX(TT[[#This Row],[Language 1]:[Language 10]],1,LanguageSelect))","v":"Baseline"}]
[null,{"$f":"ROW()-ROW(TT[#Headers])","v":44},null,null,"Astro Sock 1","Meia Espacial 1","Astro Calcetín 1","Astro Socke 1","Chaussette astronomique 1","アストロソックス１",null,null,null,null,{"$f":"_xlfn.SINGLE(INDEX(TT[[#This Row],[Language 1]:[Language 10]],1,LanguageSelect))","v":"Astro Sock 1"}]
[null,{"$f":"ROW()-ROW(TT[#Headers])","v":45},null,null,"Astro Sock 2","Meia Espacial 2","Astro Calcetín 2","Astro Socke 2","Chaussette astronomique 2","アストロソックス２",null,null,null,null,{"$f":"_xlfn.SINGLE(INDEX(TT[[#This Row],[Language 1]:[Language 10]],1,LanguageSelect))","v":"Astro Sock 2"}]
[null,{"$f":"ROW()-ROW(TT[#Headers])","v":46},null,null,"Astro Sock 3","Meia Espacial 3","Astro Calcetín 3","Astro Socke 3","Chaussette astronomique 3","アストロソックス３",null,null,null,null,{"$f":"_xlfn.SINGLE(INDEX(TT[[#This Row],[Language 1]:[Language 10]],1,LanguageSelect))","v":"Astro Sock 3"}]
[null,{"$f":"ROW()-ROW(TT[#Headers])","v":47},null,null,"Calibrate sensors ","Calibrar sensores ","Calibrar sensores ","Sensoren kalibrieren ","Calibrer les capteurs ","センサーの調整 ",null,null,null,null,{"$f":"_xlfn.SINGLE(INDEX(TT[[#This Row],[Language 1]:[Language 10]],1,LanguageSelect))","v":"Calibrate sensors "}]
[null,{"$f":"ROW()-ROW(TT[#Headers])","v":48},null,null,"Save trial 1 ","Salvar teste 1 ","Guardar prueba 1 ","Versuch 1 speichern ","Enregistrer l’essai 1 ","トライアル1を保存 ",null,null,null,null,{"$f":"_xlfn.SINGLE(INDEX(TT[[#This Row],[Language 1]:[Language 10]],1,LanguageSelect))","v":"Save trial 1 "}]
[null,{"$f":"ROW()-ROW(TT[#Headers])","v":49},null,null,"Save trial 2 ","Salvar teste 2 ","Guardar prueba 2 ","Versuch 2 speichern ","Enregistrer l’essai 2 ","トライアル2を保存 ",null,null,null,null,{"$f":"_xlfn.SINGLE(INDEX(TT[[#This Row],[Language 1]:[Language 10]],1,LanguageSelect))","v":"Save trial 2 "}]
[null,{"$f":"ROW()-ROW(TT[#Headers])","v":50},null,null,"Save trial 3 ","Salvar teste 3 ","Guardar prueba 3 ","Versuch 3 speichern ","Enregistrer l’essai 3 ","トライアル3を保存 ",null,null,null,null,{"$f":"_xlfn.SINGLE(INDEX(TT[[#This Row],[Language 1]:[Language 10]],1,LanguageSelect))","v":"Save trial 3 "}]
[null,{"$f":"ROW()-ROW(TT[#Headers])","v":51},null,null,"Clear all trials ","Limpar todos os testes ","Borrar todas las pruebas ","Alle Versuche löschen ","Effacer tous les essais ","トライアルをクリア ",null,null,null,null,{"$f":"_xlfn.SINGLE(INDEX(TT[[#This Row],[Language 1]:[Language 10]],1,LanguageSelect))","v":"Clear all trials "}]
[null,{"$f":"ROW()-ROW(TT[#Headers])","v":52},null,null,"Trial summary","Resumo do teste","Resumen de la prueba","Zusammenfassung der Versuche","Récapitulatif des essais","トライアルのまとめ",null,null,null,null,{"$f":"_xlfn.SINGLE(INDEX(TT[[#This Row],[Language 1]:[Language 10]],1,LanguageSelect))","v":"Trial summary"}]
[null,{"$f":"ROW()-ROW(TT[#Headers])","v":53},null,null,"Total pressure","Pressão total","Presión total","Gesamtdruck","Pression totale","圧力値の合計",null,null,null,null,{"$f":"_xlfn.SINGLE(INDEX(TT[[#This Row],[Language 1]:[Language 10]],1,LanguageSelect))","v":"Total pressure"}]
[null,{"$f":"ROW()-ROW(TT[#Headers])","v":54},null,null,"Pressure range","Faixa de pressão","Rango de presión","Druckbereich","Niveau de pression","圧力値の幅",null,null,null,null,{"$f":"_xlfn.SINGLE(INDEX(TT[[#This Row],[Language 1]:[Language 10]],1,LanguageSelect))","v":"Pressure range"}]
[null,{"$f":"ROW()-ROW(TT[#Headers])","v":55},null,null,"Live data","Dados ao vivo","Datos en tiempo real","Live-Daten","Données en temps réel","ライブ データ",null,null,null,null,{"$f":"_xlfn.SINGLE(INDEX(TT[[#This Row],[Language 1]:[Language 10]],1,LanguageSelect))","v":"Live data"}]
[null,{"$f":"ROW()-ROW(TT[#Headers])","v":56},null,null,"Workbook Setup","Carteira da Pasta de Trabalho","Inicio del libro de trabajo","Arbeitsmappe starten","Début de de Classeur","ワークブックの設定",null,null,null,null,{"$f":"_xlfn.SINGLE(INDEX(TT[[#This Row],[Language 1]:[Language 10]],1,LanguageSelect))","v":"Workbook Setup"}]

{"sheet":"Test sensors","index":4,"n_rows":31,"n_cols":27,"rows_kept":31,"cut":false,"hidden":false,"merged":[[8,22,8,23],[8,24,8,25],[8,26,8,27],[30,26,30,28],[1,1,1,28],[30,1,30,3],[6,7,6,26],[8,6,8,7],[8,8,8,9],[8,10,8,11],[8,12,8,13],[8,14,8,15],[8,16,8,17],[8,18,8,19],[8,20,8,21],[20,26,20,27],[10,7,10,11],[12,7,12,26],[14,6,14,7],[14,8,14,9],[14,10,14,11],[14,12,14,13],[14,14,14,15],[14,16,14,17],[14,18,14,19],[14,20,14,21],[14,22,14,23],[14,24,14,25],[14,26,14,27],[20,16,20,17],[20,18,20,19],[20,20,20,21],[20,22,20,23],[20,24,20,25],[20,6,20,7],[20,8,20,9],[20,10,20,11],[20,12,20,13],[20,14,20,15],[4,7,4,11],[22,7,22,11],[24,7,24,26],[26,6,26,7],[26,8,26,9],[26,10,26,11],[26,12,26,13],[26,14,26,15],[26,16,26,17],[26,18,26,19],[26,20,26,21],[26,22,26,23],[26,24,26,25],[26,26,26,27],[16,7,16,11],[18,7,18,26]]}
[]
[{"$f":"RIGHT(CELL(\"filename\",A2),LEN(CELL(\"filename\",A2))-FIND(\"]\",CELL(\"filename\",A2)))","v":"Test sensors"},{"$f":"TT!$O$29","v":"Test Sensors"}]
[]
[]
[null,null,null,null,null,null,null,{"$f":"TT!$O$30","v":"Phalanges Sensor"}]
[]
[null,null,null,null,null,null,null,{"$f":"Backend!$H$3","v":0}]
[]
[null,null,null,null,null,null,0,null,{"$f":"G9+10","v":10},null,{"$f":"I9+10","v":20},null,{"$f":"K9+10","v":30},null,{"$f":"M9+10","v":40},null,{"$f":"O9+10","v":50},null,{"$f":"Q9+10","v":60},null,{"$f":"S9+10","v":70},null,{"$f":"U9+10","v":80},null,{"$f":"W9+10","v":90},null,{"$f":"Y9+10","v":100}]
[]
[null,null,null,null,null,null,null,{"$f":"TT!$O$31","v":"Metatarsals Sensor"}]
[]
[null,null,null,null,null,null,null,{"$f":"Backend!$H$4","v":0}]
[]
[null,null,null,null,null,null,0,null,{"$f":"G15+10","v":10},null,{"$f":"I15+10","v":20},null,{"$f":"K15+10","v":30},null,{"$f":"M15+10","v":40},null,{"$f":"O15+10","v":50},null,{"$f":"Q15+10","v":60},null,{"$f":"S15+10","v":70},null,{"$f":"U15+10","v":80},null,{"$f":"W15+10","v":90},null,{"$f":"Y15+10","v":100}]
[]
[null,null,null,null,null,null,null,{"$f":"TT!$O$32","v":"Tarsals Sensor"}]
[]
[null,null,null,null,null,null,null,{"$f":"Backend!$H$5","v":0}]
[]
[null,null,null,null,null,null,0,null,{"$f":"G21+10","v":10},null,{"$f":"I21+10","v":20},null,{"$f":"K21+10","v":30},null,{"$f":"M21+10","v":40},null,{"$f":"O21+10","v":50},null,{"$f":"Q21+10","v":60},null,{"$f":"S21+10","v":70},null,{"$f":"U21+10","v":80},null,{"$f":"W21+10","v":90},null,{"$f":"Y21+10","v":100}]
[]
[null,null,null,null,null,null,null,{"$f":"TT!$O$33","v":"Ankle Sensor"}]
[]
[null,null,null,null,null,null,null,{"$f":"Backend!$H$6","v":0}]
[]
[null,null,null,null,null,null,0,null,{"$f":"G27+10","v":10},null,{"$f":"I27+10","v":20},null,{"$f":"K27+10","v":30},null,{"$f":"M27+10","v":40},null,{"$f":"O27+10","v":50},null,{"$f":"Q27+10","v":60},null,{"$f":"S27+10","v":70},null,{"$f":"U27+10","v":80},null,{"$f":"W27+10","v":90},null,{"$f":"Y27+10","v":100}]
[]
[]
[]
[null,{"$f":"TT!$O$23","v":" Previous"},null,null,null,null,null,null,null,null,null,null,null,null,null,null,null,null,null,null,null,null,null,null,null,null,{"$f":"TT!$O$22","v":"Next "}]

{"sheet":"Run trials","index":5,"n_rows":41,"n_cols":34,"rows_kept":41,"cut":false,"hidden":false,"merged":[[33,2,34,8],[29,16,29,19],[23,16,24,19],[21,16,21,19],[25,16,25,19],[26,16,26,19],[27,16,27,19],[28,16,28,19],[16,16,16,19],[17,16,17,19],[18,16,18,19],[19,16,19,19],[20,16,20,19],[1,1,1,12],[1,14,1,36],[3,15,4,34],[6,14,6,19],[6,20,6,24],[6,25,6,29],[6,30,6,36],[4,10,5,11],[6,1,7,1],[9,28,9,30],[9,32,9,34],[9,23,9,26],[9,16,9,17],[11,10,12,11],[12,16,12,19],[40,33,40,36],[40,1,40,4],[13,10,14,10],[30,10,31,10],[36,16,37,17],[21,10,23,10],[36,2,37,2],[36,4,37,4],[36,6,37,6],[36,7,37,7],[36,8,37,8],[19,10,20,11],[28,10,29,11],[13,16,13,19],[14,16,14,19],[15,16,15,19]]}
[null,null,null,null,null,null,null,null,null,null,null,null,null,null,null,null,null,null,null,null,null,null,null,1,null,null,null,null,2,null,null,null,3]
[{"$f":"RIGHT(CELL(\"filename\",A2),LEN(CELL(\"filename\",A2))-FIND(\"]\",CELL(\"filename\",A2)))","v":"Run trials"},{"$f":"TT!$O$57","v":"Live data"},null,null,null,null,null,null,null,null,null,null,null,null,{"$f":"TT!$O$34","v":"Saved trials"}]
[]
[null,null,null,null,null,null,null,null,null,null,null,null,null,null,null,{"$f":"TT!$O$35","v":"Use the tabs below to switch between your mitigation designs. Use the colored buttons to start the trial and then save each trial per mitigation design. "}]
[null,null,null,null,null,null,null,null,null,null,{"$f":"TT!$O$41","v":"Phalanges"}]
[]
[{"$f":"_xlfn.SWITCH(BuildNumber,0,O7,1,U7,2,Z7,3,AE7)","v":"Baseline"},null,null,null,null,null,null,null,null,null,{"$f":"Backend!$K$3","v":0.01},null,null,null,{"$f":"TT!$O$45","v":"Baseline"},null,null,null,null,null,{"$f":"TT!$O$46","v":"Astro Sock 1"},null,null,null,null,{"$f":"TT!$O$47","v":"Astro Sock 2"},null,null,null,null,{"$f":"TT!$O$48","v":"Astro Sock 3"}]
[]
[]
[{"$f":"NextTrial","v":1},null,null,null,null,null,null,null,null,null,null,null,null,null,null,null,{"$f":"TT!$O$49","v":"Calibrate sensors "},null,null,null,null,null,null,{"$f":"TT!$O$50","v":"Save trial 1 "},null,null,null,null,{"$f":"TT!$O$51","v":"Save trial 2 "},null,null,null,{"$f":"TT!$O$52","v":"Save trial 3 "}]
[]
[null,null,null,null,null,null,null,null,null,null,{"$f":"TT!$O$42","v":"Metatarsals"}]
[null,null,null,null,null,null,null,null,null,null,null,null,null,null,null,null,{"$f":"TT!$O$30","v":"Phalanges Sensor"}]
[null,null,null,null,null,null,null,null,null,null,{"$f":"Backend!$K$4","v":0.01}]
[]
[]
[]
[null,null,null,null,null,null,null,null,null,null,null,null,null,null,null,null,{"$f":"TT!$O$31","v":"Metatarsals Sensor"}]
[]
[null,null,null,null,null,null,null,null,null,null,{"$f":"TT!$O$43","v":"Tarsals"}]
[]
[null,null,null,null,null,null,null,null,null,null,{"$f":"Backend!$K$5","v":0.01}]
[]
[null,null,null,null,null,null,null,null,null,null,null,null,null,null,null,null,{"$f":"TT!$O$32","v":"Tarsals Sensor"}]
[]
[]
[]
[]
[null,null,null,null,null,null,null,null,null,null,{"$f":"TT!$O$44","v":"Ankle"}]
[null,null,null,null,null,null,null,null,null,null,null,null,null,null,null,null,{"$f":"TT!$O$33","v":"Ankle Sensor"}]
[null,null,null,null,null,null,null,null,null,null,{"$f":"Backend!$K$6","v":0.01}]
[]
[]
[null,null,{"$f":"TT!$O$36","v":"Foot pressure level"}]
[]
[]
[null,null,{"$f":"TT!$O$37","v":"None"},null,{"$f":"TT!$O$38","v":"Low"},null,{"$f":"TT!$O$39","v":"Medium"},null,{"$f":"TT!$O$40","v":"High"},null,null,null,null,null,null,null,{"$f":"TT!$O$53","v":"Clear all trials "}]
[]
[]
[]
[null,{"$f":"TT!$O$23","v":" Previous"},null,null,null,null,null,null,null,null,null,null,null,null,null,null,null,null,null,null,null,null,null,null,null,null,null,null,null,null,null,null,null,{"$f":"TT!$O$22","v":"Next "}]

{"sheet":"Sheet2","index":6,"n_rows":3,"n_cols":7,"rows_kept":3,"cut":false,"hidden":true,"merged":[]}
[]
[]
[null,null,null,null,null,null,"トライアル1を保存する "]

{"sheet":"Compare trials","index":7,"n_rows":37,"n_cols":54,"rows_kept":37,"cut":false,"hidden":false,"merged":[[21,48,21,49],[22,48,22,49],[6,11,6,13],[6,24,6,26],[6,37,6,39],[6,51,6,53],[7,24,7,25],[7,37,7,38],[7,51,7,52],[3,24,3,26],[3,37,3,39],[3,51,3,53],[1,1,1,54],[3,29,4,33],[3,42,4,46],[4,51,4,52],[4,24,4,25],[4,37,4,38],[22,6,22,7],[21,6,21,7],[36,1,36,6],[3,2,4,6],[3,16,4,20],[7,11,7,12],[4,11,4,12],[3,11,3,13],[26,2,26,4],[27,2,27,4],[28,2,28,4],[29,2,29,4],[30,2,30,4],[31,2,31,4],[32,2,32,4],[31,16,31,18],[32,16,32,18],[26,29,26,31],[27,29,27,31],[28,29,28,31],[29,29,29,31],[30,29,30,31],[31,29,31,31],[32,29,32,31],[26,16,26,18],[27,16,27,18],[28,16,28,18],[29,16,29,18],[30,16,30,18],[31,42,31,44],[32,42,32,44],[26,42,26,44],[27,42,27,44],[28,42,28,44],[29,42,29,44],[30,42,30,44]]}
[null,null,null,null,null,null,null,null,null,null,null,"M0",null,null,null,null,null,null,null,null,null,null,null,null,"M1",null,null,null,null,null,null,null,null,null,null,null,null,"M2",null,null,null,null,null,null,null,null,null,null,null,null,null,"M3"]
[{"$f":"RIGHT(CELL(\"filename\",A2),LEN(CELL(\"filename\",A2))-FIND(\"]\",CELL(\"filename\",A2)))","v":"Compare trials"},{"$f":"TT!$O$54","v":"Trial summary"}]
[]
[null,null,{"$f":"TT!$O$45","v":"Baseline"},null,null,null,null,null,null,null,null,{"$f":"TT!$O$55","v":"Total pressure"},null,null,null,null,{"$f":"TT!$O$46","v":"Astro Sock 1"},null,null,null,null,null,null,null,{"$f":"TT!$O$55","v":"Total pressure"},null,null,null,null,{"$f":"TT!$O$47","v":"Astro Sock 2"},null,null,null,null,null,null,null,{"$f":"TT!$O$55","v":"Total pressure"},null,null,null,null,{"$f":"TT!$O$48","v":"Astro Sock 3"},null,null,null,null,null,null,null,null,{"$f":"TT!$O$55","v":"Total pressure"}]
[null,null,null,null,null,null,null,null,null,null,null,{"$f":"L11+L14+L17+L20","v":0},null,"/400",null,null,null,null,null,null,null,null,null,null,{"$f":"Y11+Y14+Y17+Y20","v":0},null,"/400",null,null,null,null,null,null,null,null,null,null,{"$f":"AL11+AL14+AL17+AL20","v":0},null,"/400",null,null,null,null,null,null,null,null,null,null,null,{"$f":"AZ11+AZ14+AZ17+AZ20","v":0},null,"/400"]
[]
[null,null,null,null,null,null,null,null,null,null,null,{"$f":"TT!$O$56","v":"Pressure range"},null,null,null,null,null,null,null,null,null,null,null,null,{"$f":"TT!$O$56","v":"Pressure range"},null,null,null,null,null,null,null,null,null,null,null,null,{"$f":"TT!$O$56","v":"Pressure range"},null,null,null,null,null,null,null,null,null,null,null,null,null,{"$f":"TT!$O$56","v":"Pressure range"}]
[null,null,null,null,null,null,null,null,null,null,null,{"$f":"MAX(L11,L14,L17,L20)-MIN(L20,L17,L14,L11)","v":0},null,"/100",null,null,null,null,null,null,null,null,null,null,{"$f":"MAX(Y11,Y14,Y17,Y20)-MIN(Y20,Y17,Y14,Y11)","v":0},null,"/100",null,null,null,null,null,null,null,null,null,null,{"$f":"MAX(AL11,AL14,AL17,AL20)-MIN(AL20,AL17,AL14,AL11)","v":0},null,"/100",null,null,null,null,null,null,null,null,null,null,null,{"$f":"MAX(AZ11,AZ14,AZ17,AZ20)-MIN(AZ20,AZ17,AZ14,AZ11)","v":0},null,"/100"]
[]
[null,null,null,null,null,null,null,null,null,null,null,{"$f":"TT!$O$41","v":"Phalanges"},null,null,null,null,null,null,null,null,null,null,null,null,{"$f":"TT!$O$41","v":"Phalanges"},null,null,null,null,null,null,null,null,null,null,null,null,{"$f":"TT!$O$41","v":"Phalanges"},null,null,null,null,null,null,null,null,null,null,null,null,null,{"$f":"TT!$O$41","v":"Phalanges"}]
[1,null,null,null,null,null,null,null,null,null,null,{"$f":"INDEX(BackendTable[],'Compare trials'!$A11,MATCH('Compare trials'!L$1&\"TAvg\",BackendTable[#Headers],0))","v":0},null,null,null,null,null,null,null,null,null,null,null,null,{"$f":"INDEX(BackendTable[],'Compare trials'!$A11,MATCH('Compare trials'!Y$1&\"TAvg\",BackendTable[#Headers],0))","v":0},null,null,null,null,null,null,null,null,null,null,null,null,{"$f":"INDEX(BackendTable[],'Compare trials'!$A11,MATCH('Compare trials'!AL$1&\"TAvg\",BackendTable[#Headers],0))","v":0},null,null,null,null,null,null,null,null,null,null,null,null,null,{"$f":"INDEX(BackendTable[],'Compare trials'!$A11,MATCH('Compare trials'!AZ$1&\"TAvg\",BackendTable[#Headers],0))","v":0}]
[]
[null,null,null,null,null,null,null,null,null,null,null,{"$f":"_xlfn.SINGLE(INDEX(TT[[#This Row],[Language 1]:[Language 10]],1,LanguageSelect))","v":"Data rows:"},null,null,null,null,null,null,null,null,null,null,null,null,{"$f":"_xlfn.SINGLE(INDEX(TT[[#This Row],[Language 1]:[Language 10]],1,LanguageSelect))","v":"Data rows:"},null,null,null,null,null,null,null,null,null,null,null,null,{"$f":"_xlfn.SINGLE(INDEX(TT[[#This Row],[Language 1]:[Language 10]],1,LanguageSelect))","v":"Data rows:"},null,null,null,null,null,null,null,null,null,null,null,null,null,{"$f":"_xlfn.SINGLE(INDEX(TT[[#This Row],[Language 1]:[Language 10]],1,LanguageSelect))","v":"Data rows:"}]
[2,null,null,null,null,null,null,null,null,null,null,{"$f":"INDEX(BackendTable[],'Compare trials'!$A14,MATCH('Compare trials'!L$1&\"TAvg\",BackendTable[#Headers],0))","v":0},null,null,null,null,null,null,null,null,null,null,null,null,{"$f":"INDEX(BackendTable[],'Compare trials'!$A14,MATCH('Compare trials'!Y$1&\"TAvg\",BackendTable[#Headers],0))","v":0},null,null,null,null,null,null,null,null,null,null,null,null,{"$f":"INDEX(BackendTable[],'Compare trials'!$A14,MATCH('Compare trials'!AL$1&\"TAvg\",BackendTable[#Headers],0))","v":0},null,null,null,null,null,null,null,null,null,null,null,null,null,{"$f":"INDEX(BackendTable[],'Compare trials'!$A14,MATCH('Compare trials'!AZ$1&\"TAvg\",BackendTable[#Headers],0))","v":0}]
[]
[null,null,null,null,null,null,null,null,null,null,null,{"$f":"TT!$O$43","v":"Tarsals"},null,null,null,null,null,null,null,null,null,null,null,null,{"$f":"TT!$O$43","v":"Tarsals"},null,null,null,null,null,null,null,null,null,null,null,null,{"$f":"TT!$O$43","v":"Tarsals"},null,null,null,null,null,null,null,null,null,null,null,null,null,{"$f":"TT!$O$43","v":"Tarsals"}]
[3,null,null,null,null,null,null,null,null,null,null,{"$f":"INDEX(BackendTable[],'Compare trials'!$A17,MATCH('Compare trials'!L$1&\"TAvg\",BackendTable[#Headers],0))","v":0},null,null,null,null,null,null,null,null,null,null,null,null,{"$f":"INDEX(BackendTable[],'Compare trials'!$A17,MATCH('Compare trials'!Y$1&\"TAvg\",BackendTable[#Headers],0))","v":0},null,null,null,null,null,null,null,null,null,null,null,null,{"$f":"INDEX(BackendTable[],'Compare trials'!$A17,MATCH('Compare trials'!AL$1&\"TAvg\",BackendTable[#Headers],0))","v":0},null,null,null,null,null,null,null,null,null,null,null,null,null,{"$f":"INDEX(BackendTable[],'Compare trials'!$A17,MATCH('Compare trials'!AZ$1&\"TAvg\",BackendTable[#Headers],0))","v":0}]
[]
[null,null,null,null,null,null,null,null,null,null,null,{"$f":"TT!$O$44","v":"Ankle"},null,null,null,null,null,null,null,null,null,null,null,null,{"$f":"TT!$O$44","v":"Ankle"},null,null,null,null,null,null,null,null,null,null,null,null,{"$f":"TT!$O$44","v":"Ankle"},null,null,null,null,null,null,null,null,null,null,null,null,null,{"$f":"TT!$O$44","v":"Ankle"}]
[4,null,null,null,null,null,null,null,null,null,null,{"$f":"INDEX(BackendTable[],'Compare trials'!$A20,MATCH('Compare trials'!L$1&\"TAvg\",BackendTable[#Headers],0))","v":0},null,null,null,null,null,null,null,null,null,null,null,null,{"$f":"INDEX(BackendTable[],'Compare trials'!$A20,MATCH('Compare trials'!Y$1&\"TAvg\",BackendTable[#Headers],0))","v":0},null,null,null,null,null,null,null,null,null,null,null,null,{"$f":"INDEX(BackendTable[],'Compare trials'!$A20,MATCH('Compare trials'!AL$1&\"TAvg\",BackendTable[#Headers],0))","v":0},null,null,null,null,null,null,null,null,null,null,null,null,null,{"$f":"INDEX(BackendTable[],'Compare trials'!$A20,MATCH('Compare trials'!AZ$1&\"TAvg\",BackendTable[#Headers],0))","v":0}]
[]
[]
[null,null,{"$f":"TT!$O$37","v":"None"},null,{"$f":"TT!$O$38","v":"Low"},null,{"$f":"TT!$O$39","v":"Medium"},null,null,{"$f":"TT!$O$40","v":"High"},null,null,null,null,null,null,{"$f":"TT!$O$37","v":"None"},null,{"$f":"TT!$O$38","v":"Low"},null,{"$f":"TT!$O$39","v":"Medium"},null,{"$f":"TT!$O$40","v":"High"},null,null,null,null,null,null,{"$f":"TT!$O$37","v":"None"},null,{"$f":"TT!$O$38","v":"Low"},null,{"$f":"TT!$O$39","v":"Medium"},null,{"$f":"TT!$O$40","v":"High"},null,null,null,null,null,null,{"$f":"TT!$O$37","v":"None"},null,{"$f":"TT!$O$38","v":"Low"},null,{"$f":"TT!$O$39","v":"Medium"},null,{"$f":"TT!$O$40","v":"High"}]
[]
[]
[]
[null,null,{"$f":"TT!$O$41","v":"Phalanges"},null,null,null,null,null,null,null,null,null,null,null,null,null,{"$f":"TT!$O$41","v":"Phalanges"},null,null,null,null,null,null,null,null,null,null,null,null,{"$f":"TT!$O$41","v":"Phalanges"},null,null,null,null,null,null,null,null,null,null,null,null,{"$f":"TT!$O$41","v":"Phalanges"}]
[]
[null,null,{"$f":"TT!$O$42","v":"Metatarsals"},null,null,null,null,null,null,null,null,null,null,null,null,null,{"$f":"TT!$O$42","v":"Metatarsals"},null,null,null,null,null,null,null,null,null,null,null,null,{"$f":"TT!$O$42","v":"Metatarsals"},null,null,null,null,null,null,null,null,null,null,null,null,{"$f":"TT!$O$42","v":"Metatarsals"}]
[]
[null,null,{"$f":"TT!$O$43","v":"Tarsals"},null,null,null,null,null,null,null,null,null,null,null,null,null,{"$f":"TT!$O$43","v":"Tarsals"},null,null,null,null,null,null,null,null,null,null,null,null,{"$f":"TT!$O$43","v":"Tarsals"},null,null,null,null,null,null,null,null,null,null,null,null,{"$f":"TT!$O$43","v":"Tarsals"}]
[]
[null,null,{"$f":"TT!$O$44","v":"Ankle"},null,null,null,null,null,null,null,null,null,null,null,null,null,{"$f":"TT!$O$44","v":"Ankle"},null,null,null,null,null,null,null,null,null,null,null,null,{"$f":"TT!$O$44","v":"Ankle"},null,null,null,null,null,null,null,null,null,null,null,null,{"$f":"TT!$O$44","v":"Ankle"}]
[]
[]
[]
[null,{"$f":"TT!$O$23","v":" Previous"}]

{"sheet":"Data In","index":8,"n_rows":7,"n_cols":11,"rows_kept":7,"cut":false,"hidden":false,"merged":[[0,0,0,9],[1,0,1,9],[2,0,2,5],[5,0,5,5]]}
[{"$f":"TT!$O$3","v":"Data In (From Source)"},null,null,null,null,null,null,null,null,null,"update"]
[{"$f":"TT!$O$4","v":"Data coming from the current data source will appear below as it is received."}]
[{"$f":"TT!$O$5","v":"Current Data"}]
[{"$f":"TT!$O$6","v":"Time"},"CH1","CH2","CH3","CH4","CH5"]
[]
[{"$f":"TT!$O$7","v":"Historical Data"}]
[{"$f":"IF(A4=\"\",\"\",A4)","v":"Time"},"CH1","CH2","CH3","CH4","CH5"]

{"sheet":"Data Out","index":9,"n_rows":4,"n_cols":11,"rows_kept":4,"cut":false,"hidden":false,"merged":[[0,0,0,9],[1,0,1,9]]}
[{"$f":"TT!$O$8","v":"Data Out (To Device)"},null,null,null,null,null,null,null,null,null,"update"]
[{"$f":"TT!$O$9","v":"Data entered into the channels below will be sent to the currently connected device as a comma-delimited string."}]
[]
["CH1","CH2","CH3","CH4","CH5"]

{"sheet":"Settings","index":10,"n_rows":12,"n_cols":8,"rows_kept":12,"cut":false,"hidden":false,"merged":[[0,0,0,6],[1,0,1,6],[11,0,11,6]]}
[{"$f":"TT!$O$10","v":"Workbook Settings"},null,null,null,null,null,null,"update"]
[{"$f":"TT!$O$11","v":"Settings below will affect how data is read into the current workbook from data sources. Clear a field's contents to revert to its default setting."}]
[]
[{"$f":"TT!$O$12","v":"Data interval (ms):"},"150",50]
[]
[{"$f":"TT!$O$13","v":"Data rows:"},"15",150]
[]
[{"$f":"TT!$O$14","v":"Data channels:"},"10",5]
[]
[{"$f":"TT!$O$15","v":"Data orientation:"},"Newest last"]
[]
[{"$f":"TT!$O$16","v":"WARNING: Changing settings may result in the loss of content and/or custom formatting in the Data In and Data Out worksheets. Always save before changing values."}]